{"text_format":"3","workbook":"xlsx","n_sheets":10,"sheets":["Draft Roster","Draft List","Summary","Sheet1","Centre","Left Wing","Right Wing","Defence","Goalies","Data"],"not_rendered":{"macros":1,"external_links":1,"defined_names":43},"read":"whole","date_system":"1900"}

{"sheet":"Draft Roster","index":0,"n_rows":30,"n_cols":41,"rows_kept":30,"merged":[[0,1,0,4],[0,5,0,8],[0,9,0,12],[0,13,0,16],[0,17,0,20],[0,21,0,24],[0,25,0,28],[0,29,0,32],[0,33,0,36],[0,37,0,40],[1,1,1,4],[1,5,1,8],[1,9,1,12],[1,13,1,16],[1,17,1,20],[1,21,1,24],[1,25,1,28],[1,29,1,32],[1,33,1,36],[1,37,1,39],[21,1,21,2],[21,5,21,6],[21,13,21,14],[21,17,21,18],[21,21,21,22],[21,25,21,26],[21,29,21,30],[21,33,21,34],[21,37,21,38],[22,1,22,2],[22,5,22,6],[22,9,22,10],[22,13,22,14],[22,17,22,18],[22,21,22,22],[22,25,22,26],[22,29,22,30],[22,33,22,34],[22,37,22,38]]}
[null,{"$f":"C25","v":"Draft Order = 5"},{"$nulls":3},{"$f":"G25","v":"Draft Order = 6"},{"$nulls":3},{"$f":"K25","v":"Draft Order = 7"},{"$nulls":3},{"$f":"O25","v":"Draft Order = 8"},{"$nulls":3},{"$f":"S25","v":"Draft Order = 10"},{"$nulls":3},{"$f":"W25","v":"Draft Order = 1"},{"$nulls":3},{"$f":"AA25","v":"Draft Order = 3"},{"$nulls":3},{"$f":"AE25","v":"Draft Order = 2"},{"$nulls":3},{"$f":"AI25","v":"Draft Order = 4"},{"$nulls":3},{"$f":"AM25","v":"Draft Order = 9"}]
[null,"Bruins (Bruce)",{"$nulls":3},"Dominant Brandon (Brandon)",{"$nulls":3},"Booya's (Cathy)",{"$nulls":3},"Killa Chinchillas (Colin)",{"$nulls":3},"Woap (Mike)",{"$nulls":3},"Tad Nugents (Nick)",{"$nulls":3},"Riverdogs (Rhonda)",{"$nulls":3},"Robs Chiefs (Rob)",{"$nulls":3},"Curtis Crazy Canucks (Todd)",{"$nulls":3},"Cold Warriors (Tom)"]
[null,"Pos.","Player","$","years","Pos.","Player","$","years","Pos.","Player","$","years","Pos.","Player","$","years","Pos.","Player","$","years","Pos.","Player","$","years","Pos.","Player","$","years","Pos.","Player","$","years","Pos.","Player","$","years","Pos.","Player","$","years"]
[{"$f":"20-COUNT(D4,H4,L4,P4,T4,X4, AB4,AF4,AJ4,AN4,D5,H5,L5,P5,T5,X5,AB5,AF5,AJ5,AN5)","v":2},"G1","Pekka Rinne \nNsh - G",17,null,"G1","Jonathan Quick\nLA - G",5,null,"G1","Ondrej Pavelec \nWpg - G",3,null,"G1","Devan Dubnyk\nMin - G",3,null,"G1","Carey Price \nMon - G",6,null,"G1","Antti Niemi\nSJ - G",5,null,"G1","Corey Crawford \nChi - G",6,null,"G1","Frederik Andersen \nAnh - G",1,null,"G1","Jake Allen \nStL - G",1,null,"G1","Jimmy Howard \nDet - G",1]
[null,"G2",{"$nulls":3},"G2","Karri Ramo\nCgy - G",3,null,"G2","Robin Lehner\nBuf - G",3,null,"G2","Brian Elliott \nStL - G",1,null,"G2","Cory Schneider\nNJ - G",3,null,"G2","Jonas Hiller \nCgy - G",3,null,"G2","Henrik Lundqvist \nNYR - G",4,null,"G2","Roberto Luongo \nFla - G",3,null,"G2",{"$nulls":3},"G2","Braden Holtby \nWas - G",3]
[{"$f":"40-COUNT(D6:D9,H6:H9,L6:L9,P6:P9,T6:T9,X6:X9,AB6:AB9,AF6:AF9,AJ6:AJ9,AN6:AN9)","v":1},"D","Justin Schultz \nEdm - D",6,1,"D","Kris Letang \nPit - D",6,null,"D","Micahel Del Zotto\nPhi - D",3,null,"D","Tyson Barrie \nCol - D",6,1,"D","Alexander Edler\nVan - D\n",3,null,"D","Kevin Shattenkirk \nStL - D",5,1,"D",{"$nulls":3},"D","James Wisniewski \nCls - D",10,null,"D","Mike Green \nWas - D",5,null,"D","Travis Harmonic\nNYI - D",3]
[null,"D","Alex Pietrangelo \nStL - D",12,null,"D","Zdeno Chara \nBos - D",7,null,"D","Tyler Myers\nWpg - D",3,null,"D","Oliver Ekman-Larsson\nAri - D",9,1,"D","P.K. Subban \nMon - D",21,1,"D","Jason Garrison\nTB - D",3,null,"D","Seth Jones \nNsh - D",1,null,"D","Dan Boyle \nNYR - D",5,null,"D","Aaron Ekblad \nFla - D",3,null,"D","John Klingberg\nDal - D",3]
[null,"D","Torey Krug \nBos - D",3,null,"D","Cam Fowler \nAnh - D",6,null,"D","Johnny Boychuck\nNYI - D",3,null,"D","Sami Vatanen\nAnh - D",3,null,"D","Erik Karlsson \nOtt - D",25,1,"D","Brian Campbell \nFla - D",5,null,"D","Justin Faulk \nCar - D",1,null,"D","Niklas Kronwall \nDet - D",6,null,"D","Shea Weber \nNsh - D",17,2,"D","Mark Streit \nPhi - D",1]
[null,"D","Morgan Rielly \nTor - D",3,null,"D","Dougie Hamilton \nBos - D",1,null,"D","Christian Ehrhoff \nPit - D",5,null,"D","Roman Josi \nNsh - D",1,null,"D","Mark Giordano \nCgy - D",6,null,"D","Keith Yandle \nAri - D",9,null,"D","Victor Hedman\nTB - D",7,2,"D","Jack Johnson \nCls - D",3,null,"D","Drew Doughty\nLA - D",17,2,"D","T.J. Brodie\nCalgary",3]
[{"$f":"30-COUNT(D10:D12,H10:H12,L10:L12,P10:P12,#REF!,T10:T12,X10:X12,AB10:AB12,AF10:AF12,AJ10:AJ12,AN10:AN12)","v":1},"LW","Joe Pavelski\nSJ - C,LW",11,1,"LW","Curtis Glencross\nWas - LW",3,null,"LW","Evander Kane \nWpg - LW",6,1,"LW","Alex Galchenyuk \nMon - C,LW",3,null,"LW","Daniel Sedin \nVan - LW",13,null,"LW","Jamie Benn \nDal - LW",25,null,"LW","Tomas Tatar \nDet - LW",3,null,"LW","James van Riemsdyk \nTor - LW",7,1,"LW",{"$nulls":3},"LW","Artem Anisimov\nChi - C,LW",3]
[null,"LW","Mike Hoffman\nOtt - C,LW",3,null,"LW","Brad Marchand \nBos - LW",5,null,"LW","Taylor Hall \nEdm - C,LW",25,null,"LW","Evgeny Kuznetsov \nWas - C,LW",3,null,"LW","Pavel Datsyuk \nDet - C,LW",8,null,"LW","Tomas Plekanec\nMon - C",3,null,"LW","Brandon Dubinsky \nCls - C,LW",1,null,"LW","Tanner Pearson\nLA - LW",3,null,"LW","Brad Richards \nDet - C,LW",15,null,"LW","Matt Moulson \nBuf - LW",7]
[null,"LW","Jaden Schwartz \nStL - LW",7,null,"LW","Andrew Ladd \nWpg - LW",4,null,"LW","Patrik Elias\nNJ - C,LW",1,null,"LW","Ondrej Palat\nTB - LW",7,null,"LW","Patrick Sharp \nDal - C,LW",16,1,"LW","Scott Hartnell \nCls - LW",7,null,"LW","Nick Foligno\nCls - C,LW",3,null,"LW","Ryan O'Reilly\nCol - C,LW",3,null,"LW","Henrik Zetterberg \nDet - C,LW",10,null,"LW","Johan Franzen \nDet - LW,RW",3]
[{"$f":"30-COUNT(D13:D15,H13:H15,L13:L15,P13:P15,T13:T15,X13:X15,AB13:AB15,AF13:AF15,AJ13:AJ15,AN13:AN15)","v":2},"RW","Loui Eriksson \nBos - LW,RW",5,null,"RW",{"$nulls":3},"RW","Drew Stafford\nWpg - LW,RW",3,null,"RW",{"$nulls":3},"RW","Alex Tanguay \nCol - LW,RW",1,null,"RW","Blake Wheeler \nWpg - RW",9,null,"RW","Alexander Semin \nMon - LW,RW",5,null,"RW","Kyle Okposo \nNYI - RW",6,1,"RW","Jason Pominville \nMin - RW",12,null,"RW","Marcus Johansson\nWas - C,LW,RW",3]
[null,"RW","Mika Zibanejad\nOtt - C,RW",3,null,"RW","Patrick Kane \nChi - C,RW",24,null,"RW","Jiri Hudler \nCgy - LW,RW",1,null,"RW","Gustav Nyquist \nDet - C,LW,RW",6,1,"RW","David Pastrnak\nBos - LW,RW",3,null,"RW","Bobby Ryan \nOtt - LW,RW",12,null,"RW","Pascal Dupuis\nPit - LW,RW",3,null,"RW","Phil Kessel \nPit - RW",26,null,"RW","Rick Nash \nNYR - LW,RW",12,null,"RW","T.J. Oshie \nWas - C,RW",9]
[null,"RW","Vladimir Tarasenko \nStL - RW",2,null,"RW","Valeri Nichushkin \nDal - RW",4,1,"RW","Nikita Kucherov\nTB - RW",3,null,"RW","Patric Hornqvist \nPit - RW",5,null,"RW","Radim Vrbata \nVan - RW",1,null,"RW","Jeff Skinner \nCar - LW,RW",12,1,"RW","Corey Perry \nAnh - RW",20,1,"RW","Mark Stone\nOtt - RW",3,null,"RW","David Backes \nStL - C,RW",10,null,"RW","Ryan Kesler \nAnh - C,RW",7]
[{"$f":"30-COUNT(D16:D18,H16:H18,L16:L18,P16:P18,T16:T18,X16:X18,AB16:AB18,AF16:AF18,AJ16:AJ18,AN16:AN18)","v":1},"C","Colin Wilson\nNsh - C,LW",3,null,"C","Sidney Crosby \nPit - C",37,1,"C","Derick Brassard\nNYR - C",3,null,"C","Ryan Getzlaf \nAnh - C",27,null,"C",{"$nulls":3},"C","Valtteri Filppula\nTB - C,LW",6,null,"C","Jonathan Huberdeau \nFla - C,LW",7,1,"C","Ryan Johansen \nCls - C,RW",6,1,"C","Jason Spezza \nDal - C",11,null,"C","Martin Hanzal \nAri - C",3]
[null,"C","David Krejci \nBos - C",17,null,"C","Michael Cammalleri\nNJ - C,LW",3,null,"C","Carl Soderberg\nCol - C,LW",3,null,"C","Ryan Strome\nNYI - C",3,null,"C","Matthieu Perreault\nWpg - C",3,null,"C","Tyler Ennis \nBuf - C,LW",7,1,"C","Matt Duchene \nCol - C,LW",29,null,"C","Nicklas Backstrom \nWas - C",26,null,"C","Eric Staal \nCar - C,LW",10,null,"C","Aleksander Barkov \nFla - C",3]
[null,"C","Claude Giroux \nPhi - C,RW",26,null,"C","Nick Bonino \nPit - C",1,null,"C","Filip Forsberg \nNsh - C,RW",3,null,"C","Tyler Johnson\nTB - C",1,null,"C","Nathan MacKinnon \nCol - C,RW",13,2,"C","Cody Hodgson \nBuf - C,RW",3,null,"C","Jonathan Toews \nChi - C",21,null,"C","Tomas Hertl\nSJ - C,LW",3,null,"C","Sean Monahan \nCgy - C",3,null,"C","Henrik Sedin \nVan - C",11]
[{"$f":"10-COUNT(D19,H19,L19,P19,T19,X19,AB19,AF19,AJ19,AN19)","v":7},"U",{"$nulls":3},"U",{"$nulls":3},"U",{"$nulls":3},"U",{"$nulls":3},"U",{"$nulls":3},"U","David Perron \nPit - LW,RW",6,null,"U","Tyler Toffoli\nLA - LW,RW",3,null,"U","Tyler Bozak \nTor - C",1,null,"U",{"$nulls":3},"U"]
[null,null,"Current Used Points",{"$f":"SUM(D4:D19)","v":118},null,null,"Current Used Points",{"$f":"SUM(H4:H19)","v":109},null,null,"Current Used Points",{"$f":"SUM(L4:L19)","v":68},null,null,"Current Used Points",{"$f":"SUM(P4:P19)","v":78},null,null,"Current Used Points",{"$f":"SUM(T4:T19)","v":122},null,null,"Current Used Points",{"$f":"SUM(X4:X19)","v":120},null,null,"Current Used Points",{"$f":"SUM(AB4:AB19)","v":114},null,null,"Current Used Points",{"$f":"SUM(AF4:AF19)","v":112},null,null,"Current Used Points",{"$f":"SUM(AJ4:AJ19)","v":126},null,null,"Current Used Points",{"$f":"SUM(AN4:AN19)","v":63}]
[null,null,"Remaining Points",{"$f":"SUM(150-D20)","v":32},null,null,"Remaining Points",{"$f":"SUM(150-H20)","v":41},null,null,"Remaining Points",{"$f":"SUM(150-L20)","v":82},null,null,"Remaining Points",{"$f":"SUM(150-P20)","v":72},null,null,"Remaining Points",{"$f":"SUM(150-T20)","v":28},null,null,"Remaining Points",{"$f":"SUM(150-X20)","v":30},null,null,"Remaining Points",{"$f":"SUM(150-AB20)","v":36},null,null,"Remaining Points",{"$f":"SUM(150-AF20)","v":38},null,null,"Remaining Points",{"$f":"SUM(150-AJ20)","v":24},null,null,"Remaining Points",{"$f":"SUM(150-AN20)","v":87}]
[null,"Maximum Bidding Points",null,{"$f":"(D21-(16-COUNT(D4:D19))+(IF(COUNT(D4:D19)=16,0,1)))","v":31},null,"Maximum Bidding Points",null,{"$f":"(H21-(16-COUNT(H4:H19))+(IF(COUNT(H4:H19)=16,0,1)))","v":40},null,null,"Maximum Bidding Points",{"$f":"(L21-(16-COUNT(L4:L19))+(IF(COUNT(L4:L19)=16,0,1)))","v":82},null,"Maximum Bidding Points",null,{"$f":"(P21-(16-COUNT(P4:P19))+(IF(COUNT(P4:P19)=16,0,1)))","v":71},null,"Maximum Bidding Points",null,{"$f":"(T21-(16-COUNT(T4:T19))+(IF(COUNT(T4:T19)=16,0,1)))","v":27},null,"Maximum Bidding Points",null,{"$f":"(X21-(16-COUNT(X4:X19))+(IF(COUNT(X4:X19)=16,0,1)))","v":30},null,"Maximum Bidding Points",null,{"$f":"(AB21-(16-COUNT(AB4:AB19))+(IF(COUNT(AB4:AB19)=16,0,1)))","v":36},null,"Maximum Bidding Points",null,{"$f":"(AF21-(16-COUNT(AF4:AF19))+(IF(COUNT(AF4:AF19)=16,0,1)))","v":38},null,"Maximum Bidding Points",null,{"$f":"(AJ21-(16-COUNT(AJ4:AJ19))+(IF(COUNT(AJ4:AJ19)=16,0,1)))","v":22},null,"Maximum Bidding Points",null,{"$f":"(AN21-(16-COUNT(AN4:AN19))+(IF(COUNT(AN4:AN19)=16,0,1)))","v":87}]
[null,"Remaining Players to Draft",null,{"$f":"16-COUNT(D4:D19)","v":2},null,"Remaining Players to Draft",null,{"$f":"16-COUNT(H4:H19)","v":2},null,"Remaining Players to Draft",null,{"$f":"16-COUNT(L4:L19)","v":1},null,"Remaining Players to Draft",null,{"$f":"16-COUNT(P4:P19)","v":2},null,"Remaining Players to Draft",null,{"$f":"16-COUNT(T4:T19)","v":2},null,"Remaining Players to Draft",null,{"$f":"16-COUNT(X4:X19)","v":0},null,"Remaining Players to Draft",null,{"$f":"16-COUNT(AB4:AB19)","v":1},null,"Remaining Players to Draft",null,{"$f":"16-COUNT(AF4:AF19)","v":0},null,"Remaining Players to Draft",null,{"$f":"16-COUNT(AJ4:AJ19)","v":3},null,"Remaining Players to Draft",null,{"$f":"16-COUNT(AN4:AN19)","v":1}]
[]
[null,null,{"$f":"\"Draft Order = \"&VLOOKUP(\"Bruins (Bruce)\",draftorder,2,FALSE)","v":"Draft Order = 5"},{"$nulls":3},{"$f":"\"Draft Order = \"&VLOOKUP(\"Dominant Brandon (Brandon)\",draftorder,2,FALSE)","v":"Draft Order = 6"},{"$nulls":3},{"$f":"\"Draft Order = \"&VLOOKUP(\"Booya's (Cathy)\",draftorder,2,FALSE)","v":"Draft Order = 7"},{"$nulls":3},{"$f":"\"Draft Order = \"&VLOOKUP(\"Killa Chinchillas (Colin)\",draftorder,2,FALSE)","v":"Draft Order = 8"},{"$nulls":3},{"$f":"\"Draft Order = \"&VLOOKUP(\"Woap (Mike)\",draftorder,2,FALSE)","v":"Draft Order = 10"},{"$nulls":3},{"$f":"\"Draft Order = \"&VLOOKUP(\"Tad Nugents (Nick)\",draftorder,2,FALSE)","v":"Draft Order = 1"},{"$nulls":3},{"$f":"\"Draft Order = \"&VLOOKUP(\"Riverdogs (Rhonda)\",draftorder,2,FALSE)","v":"Draft Order = 3"},{"$nulls":3},{"$f":"\"Draft Order = \"&VLOOKUP(\"Robs Chiefs (Rob)\",draftorder,2,FALSE)","v":"Draft Order = 2"},{"$nulls":3},{"$f":"\"Draft Order = \"&VLOOKUP(\"Curtis Crazy Canucks (Todd)\",draftorder,2,FALSE)","v":"Draft Order = 4"},{"$nulls":3},{"$f":"\"Draft Order = \"&VLOOKUP(\"Cold Warriors (Tom)\",draftorder,2,FALSE)","v":"Draft Order = 9"}]
[null,null,"Teuvo Teravainen \nChi - LW",3,"r2015",null,"Johnny Gaudreau \nCgy - LW",3,"r2015",null,"Alex Stalock\nSJ - G",3,null,null,"David Savard\nCls - D",3,null,null,"Andrew Hammond\nOtt - G",3,"r2015",null,"Jhonas Enroth \nBuf - G",3,null,null,"Nail Yakupov \nEdm - LW,RW",3,{"$nulls":6},"Hampus Lindholm \nAnh - D",3,null,null,"Marko Dano\nChi - C",3]
[null,null,"Leon Draisaitl \nEdm - C",3,null,null,"Andrei Markov \nMon - D",3,null,null,"Cam Ward\nCar - G",3,null,null,"Mark Scheifele \nWpg - C",3,null,null,"Ian Cole\nPit - D",3,null,null,"Jussi Jokinen \nFla - Fla - C,LW,RW",3,null,null,"Anton Khudobin\nAnh - G",3,{"$nulls":6},"Shane Doan \nAri - LW,RW",3,null,null,"Brian Gionta\nBuf - RW",3]
[{"$nulls":6},"Jake Muzzin\nLA - D\n",3,null,null,"Jeff Carter\nLA - C,RW",10,null,null,"Jaroslav Halak \nNYI - G",3,null,null,"Nick Leddy\nNYI - D",3,{"$nulls":6},"Ryan Callahan\nTB - RW",3,{"$nulls":6},"Dion Phaneuf \nTor - D",4]
[{"$nulls":6},"Dennis Wideman \nCgy - D",3,{"$nulls":10},"Anton Stralman\nTB - D",3,{"$nulls":6},"Chris Kreider \nNYR - LW",1]
[{"$nulls":6},"Petr Mrazek\nDet - G",3]

{"sheet":"Draft List","index":1,"n_rows":211,"n_cols":9,"rows_kept":211}
[210,"Team","Player","Bid","NHL Team","Rank","Points","Wins","Shutouts"]
[1,"Dominant Brandon (Brandon)","Ryan Miller ",3,"Van - G",40,25,1,51]
[2,"Dominant Brandon (Brandon)","Jakub Voracek ",6,"Phi - RW",85,62]
[3,"Dominant Brandon (Brandon)","Valeri Nichushkin ",4,"Dal - RW",178,34]
[4,"Dominant Brandon (Brandon)","Patrice Bergeron ",12,"Bos - C",54,62]
[5,"Dominant Brandon (Brandon)","Sidney Crosby ",37,"Pit - C",1,104]
[6,"Dominant Brandon (Brandon)","Seth Jones ",1,"Nsh - D",209,25]
[7,"Dominant Brandon (Brandon)","Aleksander Barkov ",3,"Fla - C",215,24]
[8,"Killa Chinchillas (Colin)","Olli Maatta ",3,"Pit - D",258,29]
[9,"Killa Chinchillas (Colin)","Tyson Barrie ",6,"Col - D",126,38]
[10,"Killa Chinchillas (Colin)","Oliver Ekman-Larsson",9,"Ari - D",74,44]
[11,"Killa Chinchillas (Colin)","Mats Zuccarello ",3,"NYR - LW",141,59]
[12,"Killa Chinchillas (Colin)","Marian Gaborik",12,"LA - RW",80,30]
[13,"Killa Chinchillas (Colin)","Jaromir Jagr",1,"NJ - RW",130,67]
[14,"Killa Chinchillas (Colin)","James Neal ",10,"Nsh - LW,RW",35,61]
[15,"Killa Chinchillas (Colin)","Evgeni Malkin ",37,"Pit - C,RW",4,72]
[16,"Killa Chinchillas (Colin)","Gustav Nyquist ",6,"Det - C,RW",103,48]
[17,"Killa Chinchillas (Colin)","Jonathan Drouin",8,"TB - LW",112,0]
[18,"Woap (Mike)","Jake Gardiner ",6,"Tor - D",193,31]
[19,"Woap (Mike)","P.K. Subban ",21,"Mon - D",16,53]
[20,"Woap (Mike)","Erik Karlsson ",25,"Ott - D",17,74]
[21,"Woap (Mike)","Patrick Sharp ",16,"Chi - C,LW",27,78]
[22,"Woap (Mike)","Jordan Eberle ",7,"Edm - RW",63,65]
[23,"Woap (Mike)","Derek Stepan ",6,"NYR - C",136,57]
[24,"Woap (Mike)","Nathan MacKinnon ",13,"Col - C,RW",39,63]
[25,"Woap (Mike)","Evgeny Kuznetsov ",3,"Was - C,LW",121,9]
[26,"Woap (Mike)","John Gibson ",3,"Anh - G",162,3,1,7]
[27,"Vamoos Pest (Tom)","Ben Bishop",3,"TB - G",20,37,5,79]
[28,"Vamoos Pest (Tom)","Brent Seabrook ",1,"Chi - D",154,41]
[29,"Vamoos Pest (Tom)","Jay Bouwmeester ",1,"StL - D",187,37]
[30,"Vamoos Pest (Tom)","Ryan McDonagh ",3,"NYR - D",90,43]
[31,"Vamoos Pest (Tom)","Chris Kunitz ",6,"Pit - LW",24,68]
[32,"Vamoos Pest (Tom)","Patrick Marleau",17,"SJ - C,LW",43,70]
[33,"Vamoos Pest (Tom)","Max Pacioretty ",11,"Mon - LW",37,60]
[34,"Vamoos Pest (Tom)","Alex Ovechkin ",29,"Was - RW",5,79]
[35,"Vamoos Pest (Tom)","Marian Hossa ",12,"Chi - RW",65,60]
[36,"Vamoos Pest (Tom)","Mike Ribeiro ",11,"Nsh - C",179,47]
[37,"Vamoos Pest (Tom)","Joe Thornton",22,"SJ - C",67,76]
[38,"Bruins (Bruce)","Kari Lehtonen ",3,"Dal - G",34,33,5,71]
[39,"Bruins (Bruce)","Brent Burns",3,"SJ - RW,D",142,48]
[40,"Bruins (Bruce)","Alex Goligoski ",4,"Dal - D",139,42]
[41,"Bruins (Bruce)","Slava Voynov",4,"LA - D",203,34]
[42,"Bruins (Bruce)","Justin Schultz ",6,"Edm - D",171,33]
[43,"Bruins (Bruce)","Gabriel Landeskog ",7,"Col - LW",58,65]
[44,"Bruins (Bruce)","Joe Pavelski",11,"SJ - C,LW",28,79]
[45,"Bruins (Bruce)","Jarome Iginla ",12,"Col - RW",84,61]
[46,"Bruins (Bruce)","Ryan Nugent-Hopkins",8,"Edm - C",123,56]
[47,"Bruins (Bruce)","Torey Krug ",3,"Bos - D",99,40]
[48,"Riverdogs (Rhonda)","Marc-Andre Fleury",2,"Pit - G",25,39,5,83]
[49,"Riverdogs (Rhonda)","Dustin Byfuglien ",15,"Wpg - RW,D",132,56]
[50,"Riverdogs (Rhonda)","Ryan Suter ",9,"Min - D",100,43]
[51,"Riverdogs (Rhonda)","Victor Hedman",7,"TB - D",81,55]
[52,"Riverdogs (Rhonda)","Thomas Vanek ",18,"Min - LW,RW",66,68]
[53,"Riverdogs (Rhonda)","Wayne Simmonds ",3,"Phi - RW",61,60]
[54,"Riverdogs (Rhonda)","Corey Perry ",20,"Anh - RW",3,82]
[55,"Riverdogs (Rhonda)","Paul Stastny ",3,"StL - C",122,60]
[56,"Riverdogs (Rhonda)","Jonathan Huberdeau ",7,"Fla - C,LW",149,28]
[57,"Tad Nugents (Nick)","Sergei Bobrovsky ",2,"Cls - G",23,32,5,69]
[58,"Tad Nugents (Nick)","Matt Niskanen ",3,"Was - D",95,46]
[59,"Tad Nugents (Nick)","Kevin Shattenkirk ",5,"StL - D",101,45]
[60,"Tad Nugents (Nick)","Milan Lucic ",6,"Bos - LW",78,59]
[61,"Tad Nugents (Nick)","Tyler Ennis ",7,"Buf - C,LW",380,43]
[62,"Tad Nugents (Nick)","Jeff Skinner ",12,"Car - LW,RW",52,54]
[63,"Tad Nugents (Nick)","Anze Kopitar",25,"LA - C",18,70]
[64,"Robs Chiefs (Rob)","Jonathan Bernier ",3,"Tor - G",105,26,1,53]
[65,"Robs Chiefs (Rob)","Marek Zidlicky",3,"NJ - D",226,42]
[66,"Robs Chiefs (Rob)","Logan Couture",16,"SJ - C,LW",26,54]
[67,"Robs Chiefs (Rob)","Zach Parise ",17,"Min - LW",30,56]
[68,"Robs Chiefs (Rob)","James van Riemsdyk ",7,"Tor - LW",60,61]
[69,"Robs Chiefs (Rob)","Brandon Saad ",3,"Chi - LW,RW",118,47]
[70,"Robs Chiefs (Rob)","Kyle Okposo ",6,"NYI - RW",94,69]
[71,"Robs Chiefs (Rob)","Nazem Kadri ",6,"Tor - C",146,50]
[72,"Robs Chiefs (Rob)","Ryan Johansen ",6,"Cls - C,RW",71,63]
[73,"Robs Chiefs (Rob)","Tomas Hertl",3,"SJ - LW",115,25]
[74,"Robs Chiefs (Rob)","Ryan O'Reilly",3,"Col - C,LW",134,64]
[75,"Booya's (Cathy)","Tuukka Rask ",8,"Bos - G",7,36,7,79]
[76,"Booya's (Cathy)","Semyon Varlamov ",3,"Col - G",29,41,2,84]
[77,"Booya's (Cathy)","Duncan Keith ",7,"Chi - D",41,61]
[78,"Booya's (Cathy)","John Carlson ",1,"Was - D",133,37]
[79,"Booya's (Cathy)","Erik Johnson ",3,"Col - D",200,39]
[80,"Booya's (Cathy)","Evander Kane ",6,"Wpg - LW",83,41]
[81,"Booya's (Cathy)","Bryan Little ",1,"Wpg - C,RW",109,64]
[82,"Booya's (Cathy)","P.A. Parenteau ",5,"Mon - RW",181,33]
[83,"Booya's (Cathy)","Frans Nielsen ",3,"NYI - C",271,58]
[84,"Booya's (Cathy)","Steven Stamkos",36,"TB - C",2,40]
[85,"Booya's (Cathy)","John Tavares ",31,"NYI - C",9,66]
[86,"Curtis Crazy Canucks (Todd)","Mike Smith ",1,"Ari - G",48,27,3,57]
[87,"Curtis Crazy Canucks (Todd)","Shea Weber ",17,"Nsh - D",38,56]
[88,"Curtis Crazy Canucks (Todd)","Drew Doughty",17,"LA - D",49,37]
[89,"Curtis Crazy Canucks (Todd)","Alexander Steen ",3,"StL - C,LW",75,62]
[90,"Curtis Crazy Canucks (Todd)","Kyle Turris ",3,"Ott - C",98,58]
[91,"Curtis Crazy Canucks (Todd)","Tyler Seguin ",14,"Dal - C,RW",14,84]
[92,"Bruins (Bruce)","Alex Pietrangelo ",12,"StL - D",53,51]
[93,"Killa Chinchillas (Colin)","Ryan Getzlaf ",27,"Anh - C",6,87]
[94,"Tad Nugents (Nick)","Jamie Benn ",25,"Dal - LW",13,79]
[95,"Booya's (Cathy)","Taylor Hall ",25,"Edm - C,LW",21,80]
[96,"Tad Nugents (Nick)","Keith Yandle ",9,"Ari - D",57,53]
[97,"Bruins (Bruce)","Claude Giroux ",26,"Phi - C,RW",8,86]
[98,"Killa Chinchillas (Colin)","Henrik Lundqvist ",4,"NYR - G",10,33,5,71]
[99,"Dominant Brandon (Brandon)","Patrick Kane ",24,"Chi - C,RW",11,69]
[100,"Riverdogs (Rhonda)","Jonathan Toews ",21,"Chi - C",19,68]
[101,"Dominant Brandon (Brandon)","Jonathan Quick",5,"LA - G",12,27,6,60]
[102,"Riverdogs (Rhonda)","Matt Duchene ",29,"Col - C,LW",33,70]
[103,"Dominant Brandon (Brandon)","Kris Letang ",6,"Pit - D",77,22]
[104,"Robs Chiefs (Rob)","Phil Kessel ",26,"Tor - RW",15,80]
[105,"Dominant Brandon (Brandon)","Zdeno Chara ",7,"Bos - D",87,40]
[106,"Robs Chiefs (Rob)","Niklas Kronwall ",6,"Det - D",93,49]
[107,"Woap (Mike)","Pavel Datsyuk ",8,"Det - C,LW",45,37]
[108,"Woap (Mike)","Carey Price ",6,"Mon - G",22,34,6,74]
[109,"Curtis Crazy Canucks (Todd)","Rick Nash ",12,"NYR - LW,RW",51,39]
[110,"Curtis Crazy Canucks (Todd)","David Backes ",10,"StL - C,RW",50,57]
[111,"Dominant Brandon (Brandon)","Martin St. Louis ",17,"NYR - RW",59,69]
[112,"Curtis Crazy Canucks (Todd)","Henrik Zetterberg ",10,"Det - C,LW",56,48]
[113,"Woap (Mike)","Daniel Sedin ",13,"Van - LW",62,47]
[114,"Tad Nugents (Nick)","Bobby Ryan ",12,"Ott - LW,RW",64,48]
[115,"Curtis Crazy Canucks (Todd)","Eric Staal ",10,"Car - C",36,61]
[116,"Curtis Crazy Canucks (Todd)","Jason Spezza ",11,"Dal - C",44,66]
[117,"Vamoos Pest (Tom)","Ryan Kesler ",7,"Anh - C,RW",68,43]
[118,"Robs Chiefs (Rob)","Nicklas Backstrom ",26,"Was - C",70,79]
[119,"Vamoos Pest (Tom)","Henrik Sedin ",11,"Van - C",72,50]
[120,"Tad Nugents (Nick)","Scott Hartnell ",7,"Cls - LW",92,52]
[121,"Booya's (Cathy)","Jeff Carter",10,"LA - C,RW",76,50]
[122,"Riverdogs (Rhonda)","Brandon Dubinsky ",1,"Cls - C,LW",97,50]
[123,"Woap (Mike)","Mark Giordano ",6,"Cgy - D",102,47]
[124,"Curtis Crazy Canucks (Todd)","Mike Green ",5,"Was - D",104,38]
[125,"Robs Chiefs (Rob)","Dan Boyle ",5,"NYR - D",106,36]
[126,"Robs Chiefs (Rob)","James Wisniewski ",10,"Cls - D",108,51]
[127,"Booya's (Cathy)","Christian Ehrhoff ",5,"Pit - D",113,33]
[128,"Tad Nugents (Nick)","Blake Wheeler ",9,"Wpg - RW",82,69]
[129,"Vamoos Pest (Tom)","T.J. Oshie ",9,"StL - C,RW",86,60]
[130,"Bruins (Bruce)","David Krejci ",17,"Bos - C",79,69]
[131,"Dominant Brandon (Brandon)","Cam Fowler ",6,"Anh - D",125,36]
[132,"Dominant Brandon (Brandon)","Andrew Ladd ",4,"Wpg - LW",107,54]
[133,"Riverdogs (Rhonda)","Alexander Semin ",5,"Car - LW,RW",110,42]
[134,"Tad Nugents (Nick)","Brian Campbell ",5,"Fla - D",129,37]
[135,"Tad Nugents (Nick)","Valtteri Filppula",6,"TB - C,LW",153,58]
[136,"Riverdogs (Rhonda)","Corey Crawford ",6,"Chi - G",31,32,2,66]
[137,"Killa Chinchillas (Colin)","Patric Hornqvist ",5,"Pit - RW",96,53]
[138,"Tad Nugents (Nick)","Antti Niemi",5,"SJ - G",32,39,4,82]
[139,"Curtis Crazy Canucks (Todd)","Brad Richards ",15,"Chi - C,LW",156,51]
[140,"Curtis Crazy Canucks (Todd)","Dion Phaneuf ",4,"Tor - D",131,31]
[141,"Dominant Brandon (Brandon)","Brad Marchand ",5,"Bos - LW",114,53]
[142,"Woap (Mike)","Mikko Koivu ",3,"Min - C",165,54]
[143,"Riverdogs (Rhonda)","Chris Kreider ",1,"NYR - LW",116,37]
[144,"Bruins (Bruce)","Pekka Rinne ",17,"Nsh - G",42,10,2,22]
[145,"Killa Chinchillas (Colin)","Joffrey Lupul ",6,"Tor - LW,RW",117,44]
[146,"Riverdogs (Rhonda)","Justin Faulk ",1,"Car - D",137,32]
[147,"Vamoos Pest (Tom)","Jimmy Howard ",1,"Det - G",46,21,2,44]
[148,"Woap (Mike)","Steve Mason ",11,"Phi - G",55,33,4,70]
[149,"Dominant Brandon (Brandon)","Dougie Hamilton ",1,"Bos - D",196,25]
[150,"Bruins (Bruce)","Loui Eriksson ",5,"Bos - LW,RW",127,37]
[151,"Tad Nugents (Nick)","David Perron ",6,"Edm - LW,RW",144,57]
[152,"Curtis Crazy Canucks (Todd)","Jake Allen ",1,"StL - G",189,"-","-",0]
[153,"Killa Chinchillas (Colin)","Tyler Johnson",1,"TB - C",172,50]
[154,"Vamoos Pest (Tom)","Mark Streit ",1,"Phi - D",145,44]
[155,"Robs Chiefs (Rob)","Tyler Bozak ",1,"Tor - C",175,49]
[156,"Curtis Crazy Canucks (Todd)","Jason Pominville ",12,"Min - RW",124,60]
[157,"Dominant Brandon (Brandon)","Matt Moulson ",7,"Buf - LW",120,51]
[158,"Bruins (Bruce)","Jaden Schwartz ",7,"StL - LW",151,56]
[159,"Woap (Mike)","Ondrej Palat",7,"TB - LW",155,59]
[160,"Killa Chinchillas (Colin)","Brian Elliott ",1,"StL - G",69,18,4,40]
[161,"Robs Chiefs (Rob)","Frederik Andersen ",1,"Anh - G",140,20,0,40]
[162,"Bruins (Bruce)","Vladimir Tarasenko ",2,"StL - RW",157,43]
[163,"Dominant Brandon (Brandon)","Nick Bonino ",1,"Van - C",184,49]
[164,"Booya's (Cathy)","Patrik Elias",1,"NJ - C,LW",169,53]
[165,"Killa Chinchillas (Colin)","Roman Josi ",1,"Nsh - D",198,40]
[166,"Woap (Mike)","Radim Vrbata ",1,"Van - RW",138,51]
[167,"Booya's (Cathy)","Jiri Hudler ",1,"Cgy - LW,RW",206,54]
[168,"Woap (Mike)","Alex Tanguay ",1,"Col - LW,RW",290,11]
[169,"Dominant Brandon (Brandon)","Johnny Gaudreau ",3,"Cgy - LW",197,1]
[170,"Tad Nugents (Nick)","Jonas Hiller ",3,"Cgy - G",128,29,5,63]
[171,"Robs Chiefs (Rob)","Jason Demers",3,"SJ - D",190,34]
[172,"Curtis Crazy Canucks (Todd)","Aaron Ekblad ",3,"Fla - D",207,0]
[173,"Booya's (Cathy)","Filip Forsberg ",3,"Nsh - C,RW",761,5]
[174,"Killa Chinchillas (Colin)","Mikael Granlund ",3,"Min - C",241,41]
[175,"Vamoos Pest (Tom)","Cory Schneider",3,"NJ - G",47,16,3,35]
[176,"Riverdogs (Rhonda)","Alexander Edler ",3,"Van - D",159,22]
[177,"Bruins (Bruce)","Morgan Rielly ",3,"Tor - D",537,27]
[178,"Woap (Mike)","Vincent Lecavalier ",3,"Phi - C,LW",224,37]
[179,"Dominant Brandon (Brandon)","Nail Yakupov ",3,"Edm - RW",147,24]
[180,"Tad Nugents (Nick)","Jussi Jokinen ",3,"Fla - C,LW",177,57]
[181,"Robs Chiefs (Rob)","Roberto Luongo ",3,"Fla - G",88,25,4,54]
[182,"Curtis Crazy Canucks (Todd)","Craig Anderson ",3,"Ott - G",176,25,4,54]
[183,"Booya's (Cathy)","Jaroslav Halak ",3,"NYI - G",89,29,5,63]
[184,"Killa Chinchillas (Colin)","Mark Scheifele ",3,"Wpg - C",244,34]
[185,"Vamoos Pest (Tom)","Braden Holtby ",3,"Was - G",73,23,4,50]
[186,"Riverdogs (Rhonda)","Ondrej Pavelec ",3,"Wpg - G",111,22,1,45]
[187,"Bruins (Bruce)","Niklas Backstrom ",3,"Min - G",148,5,0,10]
[188,"Woap (Mike)","Andrej Sekera ",3,"Car - D",208,44]
[189,"Dominant Brandon (Brandon)","Andrei Markov ",3,"Mon - D",173,43]
[190,"Tad Nugents (Nick)","Cody Hodgson ",3,"Buf - C,RW",191,44]
[191,"Robs Chiefs (Rob)","Jack Johnson ",3,"Cls - D",161,33]
[192,"Curtis Crazy Canucks (Todd)","Sean Monahan ",3,"Cgy - C",205,34]
[193,"Booya's (Cathy)","Michael Cammalleri",3,"NJ - C,LW",183,45]
[194,"Killa Chinchillas (Colin)","Dennis Wideman ",3,"Cgy - D",202,21]
[195,"Vamoos Pest (Tom)","Johan Franzen ",3,"Det - LW,RW",119,41]
[196,"Riverdogs (Rhonda)","Jacob Trouba ",3,"Wpg - D",163,29]
[197,"Bruins (Bruce)","Leon Draisaitl ",3,"Edm - C",851,0]
[198,"Woap (Mike)","Ben Scrivens ",3,"Edm - G",180,16,4,36]
[199,"Tad Nugents (Nick)","Jhonas Enroth ",3,"Buf - G",174,4,0,8]
[200,"Curtis Crazy Canucks (Todd)","Shane Doan ",3,"Ari - LW,RW",199,47]
[201,"Booya's (Cathy)","Tobias Enstrom ",3,"Wpg - D",210,30]
[202,"Killa Chinchillas (Colin)","Darcy Kuemper ",3,"Min - G",262,12,2,26]
[203,"Riverdogs (Rhonda)","Martin Hanzal ",3,"Ari - C",167,40]
[204,"Riverdogs (Rhonda)","Reilly Smith ",3,"Bos - RW",243,51]
[205,"Bruins (Bruce)","Teuvo Teravainen ",3,"Chi - LW",361,0]
[206,"Tad Nugents (Nick)","Jason Garrison",3,"TB - D",168,33]
[207,"Curtis Crazy Canucks (Todd)","Hampus Lindholm ",3,"Anh - D",204,30]
[208,"Booya's (Cathy)","Alex Galchenyuk ",3,"Mon - C,LW",212,31]
[209,"Vamoos Pest (Tom)","Tomas Tatar ",3,"Det - LW",211,39]
[210,"Riverdogs (Rhonda)","Ales Hemsky ",3,"Dal - RW",166,43]

{"sheet":"Summary","index":2,"n_rows":12,"n_cols":11,"rows_kept":12}
["Owners","Current Used Points","Remaining Points","Maximum Bidding Points","Remaining # Players to Draft","Goalies","Defence","Left Wingers","Right Wingers","Centres","Utility"]
["Bruins (Bruce)",58,92,86,7,{"$f":"2-COUNT('Draft Roster'!D4:D5)","v":1},{"$f":"4-COUNT('Draft Roster'!D6:D9)","v":0},{"$f":"3-COUNT('Draft Roster'!D10:D12)","v":0},{"$f":"3-COUNT('Draft Roster'!D13:D15)","v":0},{"$f":"3-COUNT('Draft Roster'!D16:D18)","v":0},{"$f":"1-COUNT('Draft Roster'!D19)","v":1}]
["Dominant Brandon (Brandon)",62,88,78,11,{"$f":"2-COUNT('Draft Roster'!H4:H5)","v":0},{"$f":"4-COUNT('Draft Roster'!H6:H9)","v":0},{"$f":"3-COUNT('Draft Roster'!H10:H12)","v":0},{"$f":"3-COUNT('Draft Roster'!H13:H15)","v":1},{"$f":"3-COUNT('Draft Roster'!H16:H18)","v":0},{"$f":"1-COUNT('Draft Roster'!H19)","v":1}]
["Booya's (Cathy)",104,46,42,5,{"$f":"2-COUNT('Draft Roster'!L4:L5)","v":0},{"$f":"4-COUNT('Draft Roster'!L6:L9)","v":0},{"$f":"3-COUNT('Draft Roster'!L10:L12)","v":0},{"$f":"3-COUNT('Draft Roster'!L13:L15)","v":0},{"$f":"3-COUNT('Draft Roster'!L16:L18)","v":0},{"$f":"1-COUNT('Draft Roster'!L19)","v":1}]
["Killa Chinchillas (Colin)",87,63,57,7,{"$f":"2-COUNT('Draft Roster'!P4:P5)","v":0},{"$f":"4-COUNT('Draft Roster'!P6:P9)","v":0},{"$f":"3-COUNT('Draft Roster'!P10:P12)","v":0},{"$f":"3-COUNT('Draft Roster'!P13:P15)","v":1},{"$f":"3-COUNT('Draft Roster'!P16:P18)","v":0},{"$f":"1-COUNT('Draft Roster'!P19)","v":1}]
["Woap (Mike)",94,56,48,9,{"$f":"2-COUNT('Draft Roster'!T4:T5)","v":0},{"$f":"4-COUNT('Draft Roster'!T6:T9)","v":0},{"$f":"3-COUNT('Draft Roster'!T10:T12)","v":0},{"$f":"3-COUNT('Draft Roster'!T13:T15)","v":0},{"$f":"3-COUNT('Draft Roster'!T16:T18)","v":1},{"$f":"1-COUNT('Draft Roster'!T19)","v":1}]
["Tad Nugents (Nick)",60,90,82,9,{"$f":"2-COUNT('Draft Roster'!X4:X5)","v":0},{"$f":"4-COUNT('Draft Roster'!X6:X9)","v":0},{"$f":"3-COUNT('Draft Roster'!X10:X12)","v":0},{"$f":"3-COUNT('Draft Roster'!X13:X15)","v":0},{"$f":"3-COUNT('Draft Roster'!X16:X18)","v":0},{"$f":"1-COUNT('Draft Roster'!X19)","v":0}]
["Riverdogs (Rhonda)",84,66,60,7,{"$f":"2-COUNT('Draft Roster'!AB4:AB5)","v":0},{"$f":"4-COUNT('Draft Roster'!AB6:AB9)","v":1},{"$f":"3-COUNT('Draft Roster'!AB10:AB12)","v":0},{"$f":"3-COUNT('Draft Roster'!AB13:AB15)","v":0},{"$f":"3-COUNT('Draft Roster'!AB16:AB18)","v":0},{"$f":"1-COUNT('Draft Roster'!AB19)","v":0}]
["Flying Scotsman (Rob)",67,83,77,7,{"$f":"2-COUNT('Draft Roster'!AF4:AF5)","v":0},{"$f":"4-COUNT('Draft Roster'!AF6:AF9)","v":0},{"$f":"3-COUNT('Draft Roster'!AF10:AF12)","v":0},{"$f":"3-COUNT('Draft Roster'!AF13:AF15)","v":0},{"$f":"3-COUNT('Draft Roster'!AF16:AF18)","v":0},{"$f":"1-COUNT('Draft Roster'!AF19)","v":0}]
["Curtis Crazy Canucks (Todd)",55,95,86,10,{"$f":"2-COUNT('Draft Roster'!AJ4:AJ5)","v":1},{"$f":"4-COUNT('Draft Roster'!AJ6:AJ9)","v":0},{"$f":"3-COUNT('Draft Roster'!AJ10:AJ12)","v":1},{"$f":"3-COUNT('Draft Roster'!AJ13:AJ15)","v":0},{"$f":"3-COUNT('Draft Roster'!AJ16:AJ18)","v":0},{"$f":"1-COUNT('Draft Roster'!AJ19)","v":1}]
["Vamoos Pest (Tom)",116,34,30,5,{"$f":"2-COUNT('Draft Roster'!AN4:AN5)","v":0},{"$f":"4-COUNT('Draft Roster'!AN6:AN9)","v":0},{"$f":"3-COUNT('Draft Roster'!AN10:AN12)","v":0},{"$f":"3-COUNT('Draft Roster'!AN13:AN15)","v":0},{"$f":"3-COUNT('Draft Roster'!AN16:AN18)","v":0},{"$f":"1-COUNT('Draft Roster'!AN19)","v":1}]
[{"$nulls":4},{"$f":"SUM(E2:E11)","v":77},{"$f":"SUM(F2:F11)","v":2},{"$f":"SUM(G2:G11)","v":1},1,2,1,7]

{"sheet":"Sheet1","index":3,"n_rows":70,"n_cols":8,"rows_kept":70}
["Carey Price Mon - G","Carey Price ","Mon - G",66,7,44,9,97]
["Henrik Lundqvist NYR - G","Henrik Lundqvist ","NYR - G",46,13,30,5,65]
["Jonathan Quick LA - G","Jonathan Quick","LA - G",72,22,36,6,78]
["Pekka Rinne Nsh - G","Pekka Rinne ","Nsh - G",64,23,41,4,86]
["Braden Holtby Was - G","Braden Holtby ","Was - G",73,25,41,9,91]
["Tuukka Rask Bos - G","Tuukka Rask ","Bos - G",70,26,34,3,71]
["Ben Bishop TB - G","Ben Bishop","TB - G",62,29,40,4,84]
["Devan Dubnyk Min - G","Devan Dubnyk ","Min - G",58,31,36,6,78]
["Marc-Andre Fleury Pit - G","Marc-Andre Fleury","Pit - G",64,33,34,10,78]
["Corey Crawford Chi - G","Corey Crawford ","Chi - G",57,46,32,2,66]
["Cory Schneider NJ - G","Cory Schneider","NJ - G",69,53,26,5,57]
["Sergei Bobrovsky Cls - G","Sergei Bobrovsky ","Cls - G",51,61,30,2,62]
["Roberto Luongo Fla - G","Roberto Luongo ","Fla - G",61,63,28,2,58]
["Jaroslav Halak NYI - G","Jaroslav Halak ","NYI - G",59,69,38,6,82]
["Semyon Varlamov Col - G","Semyon Varlamov ","Col - G",57,74,28,5,61]
["Ryan Miller Van - G","Ryan Miller ","Van - G",45,77,29,6,64]
["Steve Mason Phi - G","Steve Mason ","Phi - G",51,81,18,3,39]
["Jonas Hiller Cgy - G","Jonas Hiller ","Cgy - G",52,88,26,1,53]
["Brian Elliott StL - G","Brian Elliott ","StL - G",46,99,26,5,57]
["Jake Allen StL - G","Jake Allen ","StL - G",37,101,22,4,48]
["Ondrej Pavelec Wpg - G","Ondrej Pavelec ","Wpg - G",50,107,22,5,49]
["Frederik Andersen Anh - G","Frederik Andersen ","Anh - G",54,114,35,3,73]
["Jimmy Howard Det - G","Jimmy Howard ","Det - G",53,121,23,2,48]
["Martin Jones SJ - G","Martin Jones","SJ - G",15,132,4,3,11]
["Craig Anderson Ott - G","Craig Anderson ","Ott - G",35,134,14,3,31]
["Andrew Hammond Ott - G","Andrew Hammond ","Ott - G",24,136,20,3,43]
["Kari Lehtonen Dal - G","Kari Lehtonen ","Dal - G",65,145,34,5,73]
["Mike Smith Ari - G","Mike Smith ","Ari - G",62,148,14,0,28]
["Jonathan Bernier Tor - G","Jonathan Bernier ","Tor - G",58,158,21,2,44]
["Cam Talbot Edm - G","Cam Talbot ","Edm - G",36,162,21,5,47]
["Antti Niemi Dal - G","Antti Niemi ","Dal - G",61,165,31,5,67]
["Petr Mrazek Det - G","Petr Mrazek ","Det - G",29,207,16,3,35]
["Cam Ward Car - G","Cam Ward ","Car - G",51,208,22,1,45]
["Eddie Lack Car - G","Eddie Lack ","Car - G",41,218,18,2,38]
["Robin Lehner Buf - G","Robin Lehner ","Buf - G",25,221,9,0,18]
["Alex Stalock SJ - G","Alex Stalock","SJ - G",22,229,8,2,18]
["Anton Khudobin Anh - G","Anton Khudobin ","Anh - G",34,240,8,1,17]
["Andrei Vasilevskiy TB - G","Andrei Vasilevskiy","TB - G",16,245,7,1,15]
["John Gibson Anh - G","John Gibson ","Anh - G",23,250,13,1,27]
["Karri Ramo Cgy - G","Karri Ramo ","Cgy - G",34,276,15,2,32]
["James Reimer Tor - G","James Reimer ","Tor - G",35,301,9,0,18]
["Thomas Greiss NYI - G","Thomas Greiss ","NYI - G",20,311,9,0,18]
["Darcy Kuemper Min - G","Darcy Kuemper ","Min - G",31,323,14,3,31]
["Scott Darling Chi - G","Scott Darling ","Chi - G",14,330,9,1,19]
["Michael Hutchinson Wpg - G","Michael Hutchinson ","Wpg - G",38,343,21,2,44]
["Antti Raanta NYR - G","Antti Raanta ","NYR - G",14,350,7,2,16]
["Keith Kinkaid NJ - G","Keith Kinkaid","NJ - G",19,351,6,0,12]
["Michal Neuvirth Phi - G","Michal Neuvirth ","Phi - G",32,366,7,0,14]
["Carter Hutton Nsh - G","Carter Hutton ","Nsh - G",18,368,6,1,13]
["Al Montoya Fla - G","Al Montoya ","Fla - G",20,374,6,0,12]
["Curtis McElhinney Cls - G","Curtis McElhinney ","Cls - G",32,376,12,0,24]
["Ben Scrivens Edm - G","Ben Scrivens ","Edm - G",57,379,15,1,31]
["Philipp Grubauer Was - G","Philipp Grubauer ","Was - G",1,380,1,0,2]
["Jeff Zatkoff Pit - G","Jeff Zatkoff ","Pit - G",1,381,0,0,0]
["Jhonas Enroth LA - G","Jhonas Enroth","LA - G",50,382,18,2,38]
["Dustin Tokarski Mon - G","Dustin Tokarski ","Mon - G",17,383,6,0,12]
["Chad Johnson Buf - G","Chad Johnson ","Buf - G",19,387,8,0,16]
["Reto Berra Col - G","Reto Berra ","Col - G",19,388,5,1,11]
["Jacob Markstrom Van - G","Jacob Markstrom ","Van - G",3,389,1,0,2]
["Anders Lindback Ari - G","Anders Lindback ","Ari - G",26,390,6,0,12]
["Niklas Backstrom Min - G","Niklas Backstrom ","Min - G",19,391,5,0,10]
["Jeremy Smith Bos - G","Jeremy Smith ","Bos - G","-",392,"-","-",0]
["Malcolm Subban Bos - G","Malcolm Subban ","Bos - G",1,393,0,0,0]
["Joni Ortio Cgy - G","Joni Ortio ","Cgy - G",6,394,4,1,9]
["Chris Driedger Ott - G","Chris Driedger ","Ott - G",1,395,0,0,0]
["Richard Bachman Van - G","Richard Bachman ","Van - G",7,396,3,1,7]
["Marek Mazanec Nsh - G","Marek Mazanec ","Nsh - G",2,398,0,0,0]
["Louis Domingue Ari - G","Louis Domingue ","Ari - G",7,400,1,0,2]
["Kevin Poulin NYI - G","Kevin Poulin ","NYI - G",1,407,0,0,0]
["Justin Peters Was - G","Justin Peters ","Was - G",12,411,3,0,6]

{"sheet":"Centre","index":4,"n_rows":224,"n_cols":5,"rows_kept":224}
["Player","Team","O-Rank","Points","GP"]
["Sidney Crosby ","Pit - C",2,84,77]
["Steven Stamkos","TB - C",3,72,82]
["John Tavares ","NYI - C",4,86,82]
["Tyler Seguin ","Dal - C,RW",5,77,71]
["Claude Giroux ","Phi - C,RW",8,73,81]
["Evgeni Malkin ","Pit - C,RW",9,70,69]
["Patrick Kane ","Chi - C,RW",10,64,61]
["Jonathan Toews ","Chi - C",17,66,81]
["Joe Pavelski","SJ - C,LW",20,70,82]
["Ryan Getzlaf ","Anh - C",21,70,77]
["Logan Couture","SJ - C,LW",24,67,82]
["Anze Kopitar","LA - C",28,64,79]
["Ryan Johansen ","Cls - C,RW",32,71,82]
["Nathan MacKinnon ","Col - C,RW",35,38,64]
["Henrik Zetterberg ","Det - C,LW",36,66,77]
["Tyler Johnson","TB - C",39,72,77]
["Connor McDavid ","Edm - C",42,0,"-"]
["Nick Foligno ","Cls - C,LW",43,73,79]
["Taylor Hall ","Edm - C,LW",44,38,53]
["David Backes ","StL - C,RW",49,58,80]
["Nicklas Backstrom ","Was - C",54,78,82]
["Alexander Steen ","StL - C,LW",60,64,74]
["Filip Forsberg ","Nsh - C,RW",64,63,82]
["Patrice Bergeron ","Bos - C",68,55,81]
["Kyle Turris ","Ott - C",70,64,82]
["Henrik Sedin ","Van - C",73,73,82]
["Pavel Datsyuk ","Det - C,LW",75,65,63]
["Matt Duchene ","Col - C,LW",76,55,82]
["Ryan Nugent-Hopkins","Edm - C",79,56,76]
["Patrick Marleau","SJ - C,LW",80,57,82]
["T.J. Oshie ","Was - C,RW",82,55,72]
["Patrick Sharp ","Dal - C,LW",85,43,68]
["Sean Monahan ","Cgy - C",87,62,81]
["Bryan Little ","Wpg - C,RW",91,52,70]
["Eric Staal ","Car - C",93,54,77]
["Jason Spezza ","Dal - C",98,62,82]
["Jack Eichel ","Buf - C",103,0,"-"]
["Gustav Nyquist ","Det - C,LW,RW",110,54,82]
["Jeff Carter","LA - C,RW",112,62,82]
["Ryan Kesler ","Anh - C,RW",113,47,81]
["Joe Thornton","SJ - C",120,65,78]
["Derek Stepan ","NYR - C",122,55,68]
["Mark Scheifele ","Wpg - C",126,49,82]
["Jonathan Huberdeau ","Fla - C,LW",128,54,79]
["Craig Smith ","Nsh - C,RW",135,44,82]
["Derick Brassard ","NYR - C",139,60,80]
["Alex Galchenyuk ","Mon - C,LW",143,46,80]
["Nick Bjugstad ","Fla - C",144,43,72]
["Anders Lee ","NYI - C",146,41,76]
["Brayden Schenn ","Phi - C,LW",152,47,82]
["Tyler Ennis ","Buf - C,LW",155,46,78]
["Mikko Koivu ","Min - C",156,48,80]
["Ryan O'Reilly ","Buf - C,LW,RW",159,55,82]
["Max Domi ","Ari - C",160,0,"-"]
["Evgeny Kuznetsov ","Was - C,LW",163,37,80]
["Mike Hoffman ","Ott - C,LW",168,48,79]
["Tomas Plekanec ","Mon - C",170,60,82]
["Valtteri Filppula","TB - C,LW",175,48,82]
["Ryan Strome ","NYI - C",178,50,81]
["Brandon Dubinsky ","Cls - C,LW",180,36,47]
["Carl Soderberg ","Col - C,LW",181,44,82]
["David Krejci ","Bos - C",183,31,47]
["Brandon Pirri ","Fla - C,LW,RW",186,24,49]
["Michael Cammalleri","NJ - C,LW",187,42,68]
["Colin Wilson ","Nsh - C,LW",189,42,77]
["Tomas Hertl","SJ - C,LW",191,31,82]
["Nick Bonino ","Pit - C",195,39,75]
["Aleksander Barkov ","Fla - C",197,36,71]
["Mikael Granlund ","Min - C",198,39,68]
["Alex Killorn","TB - C,LW",200,38,71]
["Paul Stastny ","StL - C",201,46,74]
["Nazem Kadri ","Tor - C",203,39,73]
["Adam Henrique","NJ - C",206,43,75]
["Jori Lehtera ","StL - C",211,44,75]
["Elias Lindholm ","Car - C",213,39,81]
["Marko Dano ","Chi - C",214,21,35]
["Frans Nielsen ","NYI - C",224,43,78]
["Mike Ribeiro ","Nsh - C",227,62,82]
["Mike Fisher ","Nsh - C",228,39,59]
["Brad Richards ","Det - C,LW",231,37,76]
["Brock Nelson ","NYI - C",234,42,82]
["Tyler Bozak ","Tor - C",238,49,82]
["Marcus Johansson ","Was - C,LW,RW",242,47,82]
["J.T. Miller ","NYR - C",248,23,58]
["Mathieu Perreault ","Wpg - C",253,41,62]
["Peter Holland ","Tor - C",255,25,62]
["Antoine Vermette ","Ari - C,LW",258,38,82]
["Michael Raffl ","Phi - C,LW",260,28,67]
["Mika Zibanejad ","Ott - C,RW",264,46,80]
["Sam Bennett ","Cgy - C",266,1,1]
["Charlie Coyle ","Min - C,RW",267,35,82]
["Brad Boyes ","Fla - C,RW",271,38,78]
["Darren Helm ","Det - C",274,33,75]
["Jussi Jokinen ","Fla - C,LW,RW",277,44,81]
["David Desharnais ","Mon - C",282,48,82]
["Cody Eakin ","Dal - C",284,40,78]
["Riley Sheahan ","Det - C",287,36,79]
["Zemgus Girgensons ","Buf - C,LW",288,30,61]
["Patrik Berglund ","StL - C",291,27,77]
["Sean Couturier ","Phi - C",299,37,82]
["Travis Zajac","NJ - C",304,25,74]
["Artem Anisimov ","Chi - C,LW",306,27,52]
["Sam Gagner ","Phi - C,RW",310,41,81]
["Victor Rask ","Car - C",316,33,80]
["Andrew Cogliano ","Anh - C,LW,RW",319,29,82]
["David Legwand ","Buf - C,LW",322,27,80]
["Anton Lander ","Edm - C,LW,RW",333,20,38]
["Matt Cullen ","Pit - C",336,25,62]
["Michael Frolik ","Cgy - C,RW",337,42,82]
["Patrik Elias","NJ - C,LW",338,34,69]
["Jean-Gabriel Pageau","Ott - C",339,19,50]
["William Nylander ","Tor - C,RW",340,0,"-"]
["Jordan Staal ","Car - C,LW",341,24,46]
["Ryan Spooner ","Bos - C,LW",344,18,29]
["Steve Ott ","StL - C,LW",355,12,78]
["Boone Jenner ","Cls - C",357,17,31]
["Colton Sceviour ","Dal - C,LW",360,26,71]
["Josh Jooris ","Cgy - C",362,24,60]
["Vincent Lecavalier ","Phi - C,LW",363,20,57]
["R.J. Umberger ","Phi - C",364,15,67]
["Brooks Laich ","Was - C,LW",365,20,66]
["Brandon Sutter ","Van - C",367,33,80]
["Max Talbot ","Bos - C,LW",378,18,81]
["Nick Spaling ","Tor - C,LW",385,27,82]
["Nathan Gerbe ","Car - C,LW,RW",397,28,78]
["Brandon Prust ","Van - C,LW",405,18,82]
["Lance Bouma ","Cgy - C,LW,RW",408,34,78]
["Brian Boyle","TB - C,LW",410,24,82]
["Lars Eller ","Mon - C,LW",414,27,77]
["Mike Santorelli ","Anh - C",416,33,79]
["Mikael Backlund ","Cgy - C",417,27,52]
["Shawn Horcoff ","Anh - C",418,29,76]
["Martin Hanzal ","Ari - C",419,24,37]
["Vernon Fiddler ","Dal - C,LW",423,29,80]
["Chris Kelly ","Bos - C",424,28,80]
["Joe Colborne ","Cgy - C,LW,RW",426,28,64]
["Jarret Stoll ","NYR - C",428,17,73]
["Dominic Moore ","NYR - C,LW",434,27,82]
["John Mitchell ","Col - C",436,26,68]
["Rickard Rakell ","Anh - C",439,31,71]
["Trevor Lewis","LA - C,LW,RW",440,25,73]
["Shawn Matthias ","Tor - C,LW",442,27,78]
["Dave Bolland ","Fla - C",446,23,53]
["Mark Arcobello ","Tor - C",448,31,77]
["Kyle Brodziak ","StL - C",460,20,73]
["Marcus Kruger ","Chi - C",462,17,81]
["Paul Gaustad ","Nsh - C,LW",467,14,73]
["Riley Nash ","Car - C",468,25,68]
["Mikhail Grabovski ","NYI - C,RW",469,19,51]
["Brad Richardson ","Ari - C",470,21,45]
["Luke Glendening ","Det - C,LW,RW",471,18,82]
["Nate Thompson ","Anh - C",472,18,80]
["Vincent Trocheck ","Fla - C,RW",474,22,50]
["Cedric Paquette","TB - C",478,19,64]
["Matt Stajan ","Cgy - C",490,17,59]
["Jay Beagle ","Was - C",493,20,62]
["Gregory Campbell ","Cls - C,LW",499,12,70]
["Casey Cizikas ","NYI - C",503,18,70]
["Zac Rinaldo ","Bos - C,LW,RW",506,6,58]
["Leo Komarov ","Tor - C",517,26,62]
["Melker Karlsson","SJ - C,RW",518,24,53]
["Ryan Carter ","Min - C,LW",520,13,53]
["Erik Haula ","Min - C,LW",522,14,72]
["Kyle Chipchura ","Ari - C",524,14,70]
["Calle Jarnkrok ","Nsh - C",525,18,74]
["Brad Malone ","Car - C,LW",532,15,65]
["Paul Byron ","Cgy - C,LW",537,19,57]
["Andrej Nestrasil ","Car - C",540,20,54]
["Cody Hodgson ","Nsh - C,RW",542,13,78]
["Stephen Gionta","NJ - C,RW",543,13,61]
["Bo Horvat ","Van - C",547,25,68]
["Jay McClement ","Car - C",551,21,82]
["Brian Flynn ","Mon - C",558,17,63]
["Chris Tierney","SJ - C",559,21,43]
["Rob Klinkhammer ","Edm - C,LW,RW",564,9,69]
["Mark Letestu ","Edm - C,RW",565,13,54]
["Jordan Nolan","LA - C,LW,RW",567,9,60]
["Derek MacKenzie ","Fla - C,LW",569,11,82]
["Curtis Lazar ","Ott - C",571,15,67]
["Boyd Gordon ","Ari - C",572,13,68]
["Markus Granlund ","Cgy - C",578,18,48]
["Michael Latta ","Was - C",580,6,53]
["Torrey Mitchell ","Mon - C,RW",581,14,65]
["Jacob Josefson","NJ - C,LW",582,11,62]
["Barclay Goodrow","SJ - C,RW",583,12,60]
["Zach Sill ","Was - C",585,4,63]
["Chris VandeVelde ","Phi - C",589,15,72]
["Vladislav Namestnikov","TB - C",592,16,43]
["Alexander Wennberg ","Cls - C",594,20,68]
["Joakim Andersson ","Det - C",595,8,68]
["Zack Smith ","Ott - C",609,3,37]
["Joe Vitale ","Ari - C,RW",612,9,70]
["Jordan Schroeder ","Min - C,RW",619,8,25]
["Brian Gibbons ","NYR - C",632,5,25]
["Scott Laughton ","Phi - C",633,6,31]
["Cody McCormick ","Buf - C,LW,RW",636,4,33]
["Nick Shore","LA - C",649,7,34]
["Craig Cunningham ","Ari - C,LW",655,7,51]
["Jesse Winchester ","Col - C,LW,RW",659,0,"-"]
["Eric O'Dell ","Ott - C",665,1,11]
["Leon Draisaitl ","Edm - C",669,9,37]
["Brett Sutter ","Min - C,LW",675,3,6]
["Chris Brown ","Was - C",682,1,5]
["Drew Shore ","Cgy - C",683,3,11]
["Michael Sgarbossa ","Anh - C",686,1,3]
["Casey Bailey ","Tor - C",689,1,6]
["Quinton Howden ","Fla - C",693,0,"-"]
["Andrew Copp ","Wpg - C",694,1,1]
["Landon Ferraro ","Det - C,RW",695,1,3]
["Nick Cousins ","Phi - C",696,0,11]
["Jonathan Marchessault","TB - C",697,1,2]
["Sam Reinhart ","Buf - C",704,1,9]
["Tyler Graovac ","Min - C",708,0,3]
["Oscar Lindberg ","NYR - C",710,0,1]
["Phillip Danault ","Chi - C",711,0,2]
["Nicolas Petan ","Wpg - C",714,0,"-"]
["Dylan Strome ","Ari - C",716,0,"-"]
["Pavel Zacha","NJ - C",721,0,"-"]
["Dylan Larkin ","Det - C",722,0,"-"]
["Alex Burmistrov ","Wpg - C,RW",725,0,"-"]
["Robby Fabbri ","StL - C",730,0,"-"]
["Ryan Bourque ","NYR - C",734,0,1]
["Alexander Khokhlachev ","Bos - C,LW",735,0,3]

{"sheet":"Left Wing","index":5,"n_rows":214,"n_cols":5,"rows_kept":214}
["Player","Team","O-Rank","Points","GP"]
["Alex Ovechkin ","Was - LW,RW",1,81,81]
["Jamie Benn ","Dal - LW",6,87,82]
["Rick Nash ","NYR - LW,RW",19,69,79]
["Joe Pavelski","SJ - C,LW",20,70,82]
["Logan Couture","SJ - C,LW",24,67,82]
["Zach Parise ","Min - LW",27,62,74]
["Henrik Zetterberg ","Det - C,LW",36,66,77]
["Max Pacioretty ","Mon - LW",41,67,80]
["Nick Foligno ","Cls - C,LW",43,73,79]
["Taylor Hall ","Edm - C,LW",44,38,53]
["James van Riemsdyk ","Tor - LW",45,56,82]
["Gabriel Landeskog ","Col - LW",48,59,82]
["Alexander Steen ","StL - C,LW",60,64,74]
["Daniel Sedin ","Van - LW",65,76,82]
["Andrew Ladd ","Wpg - LW",66,62,81]
["James Neal ","Nsh - LW,RW",71,37,67]
["Johnny Gaudreau ","Cgy - LW",72,64,80]
["Pavel Datsyuk ","Det - C,LW",75,65,63]
["Matt Duchene ","Col - C,LW",76,55,82]
["Tomas Tatar ","Det - LW,RW",78,56,82]
["Patrick Marleau","SJ - C,LW",80,57,82]
["Patrick Sharp ","Dal - C,LW",85,43,68]
["Chris Kreider ","NYR - LW",86,46,80]
["Jiri Hudler ","Cgy - LW,RW",92,76,78]
["Evander Kane ","Buf - LW",94,2,37]
["Wayne Simmonds ","Phi - LW,RW",95,50,75]
["Brandon Saad ","Cls - LW,RW",97,52,82]
["Jaden Schwartz ","StL - LW",105,63,75]
["Ondrej Palat","TB - LW",106,63,75]
["Gustav Nyquist ","Det - C,LW,RW",110,54,82]
["Chris Kunitz ","Pit - LW",115,40,74]
["Brad Marchand ","Bos - LW",116,42,77]
["Bobby Ryan ","Ott - LW,RW",123,54,78]
["Tyler Toffoli","LA - LW,RW",125,49,76]
["Jonathan Huberdeau ","Fla - C,LW",128,54,79]
["Jeff Skinner ","Car - LW,RW",131,31,77]
["Milan Lucic","LA - LW",137,44,81]
["Scott Hartnell ","Cls - LW",138,60,77]
["Thomas Vanek ","Min - LW,RW",141,52,80]
["Alex Galchenyuk ","Mon - C,LW",143,46,80]
["Nail Yakupov ","Edm - LW,RW",150,33,81]
["Brayden Schenn ","Phi - C,LW",152,47,82]
["Tyler Ennis ","Buf - C,LW",155,46,78]
["Ryan O'Reilly ","Buf - C,LW,RW",159,55,82]
["Evgeny Kuznetsov ","Was - C,LW",163,37,80]
["Drew Stafford ","Wpg - LW,RW",164,43,76]
["Mike Hoffman ","Ott - C,LW",168,48,79]
["David Pastrnak ","Bos - LW,RW",169,27,46]
["Mats Zuccarello ","NYR - LW,RW",171,49,78]
["David Perron ","Pit - LW,RW",174,41,81]
["Valtteri Filppula","TB - C,LW",175,48,82]
["Jonathan Drouin","TB - LW",177,32,70]
["Brandon Dubinsky ","Cls - C,LW",180,36,47]
["Carl Soderberg ","Col - C,LW",181,44,82]
["Brandon Pirri ","Fla - C,LW,RW",186,24,49]
["Michael Cammalleri","NJ - C,LW",187,42,68]
["Carl Hagelin ","Anh - LW",188,35,82]
["Colin Wilson ","Nsh - C,LW",189,42,77]
["Tomas Hertl","SJ - C,LW",191,31,82]
["Alex Killorn","TB - C,LW",200,38,71]
["Loui Eriksson ","Bos - LW,RW",202,47,81]
["Joffrey Lupul ","Tor - LW,RW",204,21,55]
["Matt Moulson ","Buf - LW",209,41,77]
["Jakob Silfverberg ","Anh - LW,RW",210,39,81]
["Johan Franzen ","Det - LW,RW",212,22,33]
["Reilly Smith ","Fla - LW,RW",215,40,81]
["Clarke MacArthur ","Ott - LW",230,36,62]
["Brad Richards ","Det - C,LW",231,37,76]
["Justin Abdelkader ","Det - LW,RW",233,44,71]
["Tommy Wingels","SJ - LW,RW",237,36,75]
["Alex Tanguay ","Col - LW,RW",241,55,80]
["Marcus Johansson ","Was - C,LW,RW",242,47,82]
["Steve Downie ","Ari - LW,RW",243,28,72]
["Kris Versteeg ","Chi - LW,RW",249,34,61]
["Jiri Tlusty ","Wpg - LW",251,31,72]
["Antoine Vermette ","Ari - C,LW",258,38,82]
["Michael Raffl ","Phi - C,LW",260,28,67]
["Dustin Brown","LA - LW,RW",261,27,82]
["Shane Doan ","Ari - LW,RW",273,36,79]
["Jussi Jokinen ","Fla - C,LW,RW",277,44,81]
["Benoit Pouliot ","Edm - LW",279,34,58]
["Mason Raymond ","Cgy - LW",281,23,57]
["Matt Read ","Phi - LW,RW",286,30,80]
["Zemgus Girgensons ","Buf - C,LW",288,30,61]
["Alexander Semin ","Mon - LW,RW",292,19,57]
["Bryan Bickell ","Chi - LW",293,28,80]
["Chris Stewart ","Anh - LW,RW",294,36,81]
["Mikkel Boedker ","Ari - LW,RW",297,28,45]
["Artem Anisimov ","Chi - C,LW",306,27,52]
["Alexandre Burrows ","Van - LW,RW",308,33,70]
["Antoine Roussel ","Dal - LW",313,25,80]
["Kyle Palmieri","NJ - LW,RW",317,29,57]
["Andrew Cogliano ","Anh - C,LW,RW",319,29,82]
["Curtis Glencross ","Was - LW",320,35,71]
["Milan Michalek ","Ott - LW,RW",321,34,66]
["David Legwand ","Buf - C,LW",322,27,80]
["Teddy Purcell ","Edm - LW,RW",331,34,82]
["Anton Lander ","Edm - C,LW,RW",333,20,38]
["Josh Bailey ","NYI - LW,RW",334,41,70]
["Patrik Elias","NJ - C,LW",338,34,69]
["Jordan Staal ","Car - C,LW",341,24,46]
["Ryan Spooner ","Bos - C,LW",344,18,29]
["Patrick Maroon ","Anh - LW",345,34,71]
["Nick Ritchie ","Anh - LW",347,0,"-"]
["Sonny Milano ","Cls - LW",348,0,"-"]
["Steve Ott ","StL - C,LW",355,12,78]
["Matt Beleskey ","Bos - LW",356,32,65]
["Chris Higgins ","Van - LW",359,36,77]
["Colton Sceviour ","Dal - C,LW",360,26,71]
["Vincent Lecavalier ","Phi - C,LW",363,20,57]
["Brooks Laich ","Was - C,LW",365,20,66]
["Nikolaj Ehlers ","Wpg - LW",371,0,"-"]
["Tomas Fleischmann ","Anh - LW",372,27,66]
["Max Talbot ","Bos - C,LW",378,18,81]
["Nick Spaling ","Tor - C,LW",385,27,82]
["Patrick Eaves ","Dal - LW,RW",386,27,47]
["Nathan Gerbe ","Car - C,LW,RW",397,28,78]
["Cody McLeod ","Col - LW,RW",399,12,82]
["Blake Comeau ","Col - LW",402,31,61]
["Daniel Winnik ","Tor - LW",403,34,79]
["Brandon Prust ","Van - C,LW",405,18,82]
["Lance Bouma ","Cgy - C,LW,RW",408,34,78]
["Brian Boyle","TB - C,LW",410,24,82]
["Lars Eller ","Mon - C,LW",414,27,77]
["Kyle Clifford","LA - LW",420,15,80]
["Vernon Fiddler ","Dal - C,LW",423,29,80]
["Joe Colborne ","Cgy - C,LW,RW",426,28,64]
["Matt Martin ","NYI - LW,RW",427,14,78]
["Nikolay Kulemin ","NYI - LW,RW",429,31,82]
["Jason Chimera ","Was - LW,RW",430,19,77]
["Dwight King","LA - LW,RW",433,26,81]
["Dominic Moore ","NYR - C,LW",434,27,82]
["Trevor Lewis","LA - C,LW,RW",440,25,73]
["Shawn Matthias ","Tor - C,LW",442,27,78]
["Matthew Nieto","SJ - LW",447,27,72]
["Matt Calvert ","Cls - LW",451,23,56]
["Matt Hendricks ","Edm - LW",461,16,71]
["Adam Lowry ","Wpg - LW",463,23,80]
["Paul Gaustad ","Nsh - C,LW",467,14,73]
["Luke Glendening ","Det - C,LW,RW",471,18,82]
["Marcus Foligno ","Buf - LW",473,20,57]
["Tomas Jurco ","Det - LW,RW",477,18,63]
["Jason Zucker ","Min - LW,RW",483,26,51]
["Brett Connolly ","Bos - LW,RW",487,17,55]
["Brandon Bollig ","Cgy - LW",496,5,62]
["Gregory Campbell ","Cls - C,LW",499,12,70]
["Andrew Desjardins ","Chi - LW",501,10,69]
["Andre Burakovsky ","Was - LW",504,22,53]
["Tanner Pearson","LA - LW",505,16,42]
["Zac Rinaldo ","Bos - C,LW,RW",506,6,58]
["Jiri Sekac ","Anh - LW,RW",510,23,69]
["Ryan Carter ","Min - C,LW",520,13,53]
["Erik Haula ","Min - C,LW",522,14,72]
["Tanner Glass ","NYR - LW",528,6,66]
["Drew Miller ","Det - LW,RW",529,13,82]
["Brad Malone ","Car - C,LW",532,15,65]
["Tuomo Ruutu","NJ - LW,RW",534,13,77]
["Paul Byron ","Cgy - C,LW",537,19,57]
["John Scott ","Ari - LW,D",544,4,38]
["Lauri Korpikoski ","Edm - LW,RW",548,21,69]
["Chris Terry ","Car - LW,RW",549,20,57]
["Eric Nystrom ","Nsh - LW,RW",554,12,60]
["Rob Klinkhammer ","Edm - C,LW,RW",564,9,69]
["Jordan Nolan","LA - C,LW,RW",567,9,60]
["Derek MacKenzie ","Fla - C,LW",569,11,82]
["Pascal Dupuis ","Pit - LW,RW",570,11,16]
["Jeremy Morin ","Chi - LW,RW",574,6,43]
["Matt Cooke ","Min - LW",576,10,29]
["Pierre-Edouard Bellemare","Phi - LW",577,12,81]
["Jacob Josefson","NJ - C,LW",582,11,62]
["Beau Bennett ","Pit - LW,RW",586,12,49]
["Nicolas Deslauriers ","Buf - LW",591,15,82]
["Shawn Thornton ","Fla - LW,RW",596,5,46]
["Gabriel Bourque ","Nsh - LW,RW",598,13,69]
["Jamie McGinn ","Buf - LW,RW",599,6,19]
["Corey Tropp ","Chi - LW,RW",601,8,61]
["Teemu Pulkkinen ","Det - LW",603,8,31]
["Travis Moen ","Dal - LW,RW",604,9,44]
["Viktor Stalberg ","NYR - LW,RW",605,10,25]
["Luke Gazdic ","Edm - LW",613,3,40]
["Emerson Etem ","NYR - LW,RW",618,10,45]
["Teuvo Teravainen ","Chi - LW",620,9,34]
["Jesper Fast ","NYR - LW,RW",622,14,58]
["Matt Fraser ","Wpg - LW,RW",623,12,60]
["Colin Greening ","Ott - LW",630,1,26]
["Cody McCormick ","Buf - C,LW,RW",636,4,33]
["Ryane Clowe","NJ - LW,RW",637,4,13]
["Ronalds Kenins ","Van - LW",638,12,30]
["Micheal Ferland ","Cgy - LW,RW",644,5,26]
["Zach Boychuk ","Car - LW,RW",651,6,31]
["Anthony Duclair ","Ari - LW",652,7,18]
["Rich Clune ","Nsh - LW",653,0,1]
["Patrick Bordeleau ","Col - LW,RW",654,0,1]
["Craig Cunningham ","Ari - C,LW",655,7,51]
["Jacob De La Rose ","Mon - LW",656,6,33]
["Matt Puempel ","Ott - LW",657,3,13]
["Jesse Winchester ","Col - C,LW,RW",659,0,"-"]
["Andy Andreoff","LA - LW",661,3,18]
["Joakim Nordstrom ","Chi - LW",668,3,38]
["Lucas Lessio ","Ari - LW",672,null,26]
["Brett Sutter ","Min - C,LW",675,3,6]
["Chris Porter ","Phi - LW",677,2,24]
["Christian Thomas ","Mon - LW,RW",680,1,18]
["Stefan Matteau","NJ - LW",691,1,7]
["Shane Prince ","Ott - LW",698,1,2]
["Emile Poirier ","Cgy - LW",699,1,6]
["Viktor Arvidsson ","Nsh - LW",702,0,6]
["Max Friberg ","Anh - LW",715,0,1]
["Michael Dal Colle ","NYI - LW",717,0,"-"]
["Sergei Plotnikov ","Pit - LW",727,0,"-"]
["Artemi Panarin ","Chi - LW",729,0,"-"]
["Kevin Fiala ","Nsh - LW",733,0,1]
["Alexander Khokhlachev ","Bos - C,LW",735,0,3]

{"sheet":"Right Wing","index":6,"n_rows":199,"n_cols":5,"rows_kept":199}
["Player","Team","O-Rank","Points","GP"]
["Alex Ovechkin ","Was - LW,RW",1,81,81]
["Tyler Seguin ","Dal - C,RW",5,77,71]
["Claude Giroux ","Phi - C,RW",8,73,81]
["Evgeni Malkin ","Pit - C,RW",9,70,69]
["Patrick Kane ","Chi - C,RW",10,64,61]
["Phil Kessel ","Pit - RW",11,61,82]
["Corey Perry ","Anh - RW",12,55,67]
["Vladimir Tarasenko ","StL - RW",15,73,77]
["Jakub Voracek ","Phi - RW",16,81,82]
["Rick Nash ","NYR - LW,RW",19,69,79]
["Jordan Eberle ","Edm - RW",30,63,81]
["Ryan Johansen ","Cls - C,RW",32,71,82]
["Nathan MacKinnon ","Col - C,RW",35,38,64]
["Dustin Byfuglien ","Wpg - RW,D",38,45,69]
["Nikita Kucherov","TB - RW",40,65,82]
["Brent Burns","SJ - RW,D",47,60,82]
["David Backes ","StL - C,RW",49,58,80]
["Blake Wheeler ","Wpg - RW",56,61,79]
["Filip Forsberg ","Nsh - C,RW",64,63,82]
["James Neal ","Nsh - LW,RW",71,37,67]
["Tomas Tatar ","Det - LW,RW",78,56,82]
["T.J. Oshie ","Was - C,RW",82,55,72]
["Bryan Little ","Wpg - C,RW",91,52,70]
["Jiri Hudler ","Cgy - LW,RW",92,76,78]
["Wayne Simmonds ","Phi - LW,RW",95,50,75]
["Kyle Okposo ","NYI - RW",96,51,60]
["Brandon Saad ","Cls - LW,RW",97,52,82]
["Marian Hossa ","Chi - RW",100,61,82]
["Jarome Iginla ","Col - RW",108,59,82]
["Gustav Nyquist ","Det - C,LW,RW",110,54,82]
["Jeff Carter","LA - C,RW",112,62,82]
["Ryan Kesler ","Anh - C,RW",113,47,81]
["Patric Hornqvist ","Pit - RW",118,51,64]
["Radim Vrbata ","Van - RW",119,63,79]
["Bobby Ryan ","Ott - LW,RW",123,54,78]
["Tyler Toffoli","LA - LW,RW",125,49,76]
["Mark Stone ","Ott - RW",129,64,80]
["Jeff Skinner ","Car - LW,RW",131,31,77]
["Craig Smith ","Nsh - C,RW",135,44,82]
["Marian Gaborik","LA - RW",140,47,69]
["Thomas Vanek ","Min - LW,RW",141,52,80]
["Brendan Gallagher ","Mon - RW",147,47,82]
["Nail Yakupov ","Edm - LW,RW",150,33,81]
["Kevin Hayes ","NYR - RW",153,45,79]
["Cam Atkinson ","Cls - RW",154,40,78]
["Troy Brouwer ","StL - RW",157,43,82]
["Ryan O'Reilly ","Buf - C,LW,RW",159,55,82]
["Ryan Callahan","TB - RW",161,54,77]
["Drew Stafford ","Wpg - LW,RW",164,43,76]
["Jaromir Jagr ","Fla - RW",167,47,77]
["David Pastrnak ","Bos - LW,RW",169,27,46]
["Mats Zuccarello ","NYR - LW,RW",171,49,78]
["David Perron ","Pit - LW,RW",174,41,81]
["Justin Williams ","Was - RW",176,41,81]
["Jason Pominville ","Min - RW",179,54,82]
["Brandon Pirri ","Fla - C,LW,RW",186,24,49]
["Loui Eriksson ","Bos - LW,RW",202,47,81]
["Joffrey Lupul ","Tor - LW,RW",204,21,55]
["Jakob Silfverberg ","Anh - LW,RW",210,39,81]
["Johan Franzen ","Det - LW,RW",212,22,33]
["Reilly Smith ","Fla - LW,RW",215,40,81]
["Jimmy Hayes ","Bos - RW",219,35,72]
["Justin Abdelkader ","Det - LW,RW",233,44,71]
["Tommy Wingels","SJ - LW,RW",237,36,75]
["Alex Tanguay ","Col - LW,RW",241,55,80]
["Marcus Johansson ","Was - C,LW,RW",242,47,82]
["Steve Downie ","Ari - LW,RW",243,28,72]
["Kris Versteeg ","Chi - LW,RW",249,34,61]
["Dustin Brown","LA - LW,RW",261,27,82]
["Mika Zibanejad ","Ott - C,RW",264,46,80]
["Nino Niederreiter ","Min - RW",265,37,80]
["Charlie Coyle ","Min - C,RW",267,35,82]
["Brad Boyes ","Fla - C,RW",271,38,78]
["Shane Doan ","Ari - LW,RW",273,36,79]
["Jussi Jokinen ","Fla - C,LW,RW",277,44,81]
["Matt Read ","Phi - LW,RW",286,30,80]
["Michael Ryder","NJ - RW",290,19,47]
["Alexander Semin ","Mon - LW,RW",292,19,57]
["Chris Stewart ","Anh - LW,RW",294,36,81]
["Jannik Hansen ","Van - RW",295,33,81]
["Joel Ward","SJ - RW",296,34,82]
["Mikkel Boedker ","Ari - LW,RW",297,28,45]
["Alexandre Burrows ","Van - LW,RW",308,33,70]
["Sam Gagner ","Phi - C,RW",310,41,81]
["Michael Grabner ","NYI - RW",315,13,34]
["Kyle Palmieri","NJ - LW,RW",317,29,57]
["Andrew Cogliano ","Anh - C,LW,RW",319,29,82]
["Milan Michalek ","Ott - LW,RW",321,34,66]
["Pierre-Alexandr Parenteau","Tor - RW",328,22,56]
["Teddy Purcell ","Edm - LW,RW",331,34,82]
["Anton Lander ","Edm - C,LW,RW",333,20,38]
["Josh Bailey ","NYI - LW,RW",334,41,70]
["Michael Frolik ","Cgy - C,RW",337,42,82]
["William Nylander ","Tor - C,RW",340,0,"-"]
["Justin Fontaine ","Min - RW",342,31,71]
["Tomas Kopecky ","Fla - RW",346,8,64]
["Andrew Shaw ","Chi - RW",349,26,79]
["Alex Chiasson ","Ott - RW",352,26,76]
["Derek Dorsett ","Van - RW",353,25,79]
["Scottie Upshall ","StL - RW",354,15,63]
["Brian Gionta ","Buf - RW",358,35,69]
["Devante Smith-Pelly","Mon - RW",361,20,74]
["Ales Hemsky ","Dal - RW",369,32,76]
["Steve Bernier","NJ - RW",373,32,67]
["Jared Boll ","Cls - RW",375,5,72]
["Chris Neil ","Ott - RW",377,7,38]
["Patrick Eaves ","Dal - LW,RW",386,27,47]
["Nathan Gerbe ","Car - C,LW,RW",397,28,78]
["Cody McLeod ","Col - LW,RW",399,12,82]
["Tom Wilson ","Was - RW",401,17,67]
["Eric Fehr ","Pit - RW",406,33,75]
["Lance Bouma ","Cgy - C,LW,RW",408,34,78]
["Ryan Garbutt ","Chi - RW",409,25,67]
["Dale Weise ","Mon - RW",412,29,79]
["Joe Colborne ","Cgy - C,LW,RW",426,28,64]
["Matt Martin ","NYI - LW,RW",427,14,78]
["Nikolay Kulemin ","NYI - LW,RW",429,31,82]
["Jason Chimera ","Was - LW,RW",430,19,77]
["Cal Clutterbuck ","NYI - RW",431,16,76]
["Dwight King","LA - LW,RW",433,26,81]
["Erik Condra","TB - RW",437,23,68]
["Trevor Lewis","LA - C,LW,RW",440,25,73]
["David Clarkson ","Cls - RW",443,15,61]
["Zack Kassian ","Mon - RW",444,16,42]
["David Jones ","Cgy - RW",445,30,67]
["Ryan Reaves ","StL - RW",449,12,81]
["Mikhail Grabovski ","NYI - C,RW",469,19,51]
["Luke Glendening ","Det - C,LW,RW",471,18,82]
["Vincent Trocheck ","Fla - C,RW",474,22,50]
["Tomas Jurco ","Det - LW,RW",477,18,63]
["Jason Zucker ","Min - LW,RW",483,26,51]
["Dmitrij Jaskin ","StL - RW",484,18,54]
["Chris Thorburn ","Wpg - RW",485,14,81]
["Brett Connolly ","Bos - LW,RW",487,17,55]
["Jordin Tootoo","NJ - RW",488,15,68]
["Richard Panik ","Tor - RW",495,17,76]
["Tim Jackman ","Anh - RW",502,7,55]
["Zac Rinaldo ","Bos - C,LW,RW",506,6,58]
["Jiri Sekac ","Anh - LW,RW",510,23,69]
["Tobias Rieder ","Ari - RW",512,21,72]
["Linden Vey ","Van - RW",516,24,75]
["Melker Karlsson","SJ - C,RW",518,24,53]
["Drew Miller ","Det - LW,RW",529,13,82]
["Ben Smith","SJ - RW",533,14,80]
["Tuomo Ruutu","NJ - LW,RW",534,13,77]
["Cody Hodgson ","Nsh - C,RW",542,13,78]
["Stephen Gionta","NJ - C,RW",543,13,61]
["Rene Bourque ","Cls - RW",545,14,51]
["Lauri Korpikoski ","Edm - LW,RW",548,21,69]
["Chris Terry ","Car - LW,RW",549,20,57]
["Eric Nystrom ","Nsh - LW,RW",554,12,60]
["J.T. Brown","TB - RW",557,9,52]
["Ryan White ","Phi - RW",561,12,34]
["Rob Klinkhammer ","Edm - C,LW,RW",564,9,69]
["Mark Letestu ","Edm - C,RW",565,13,54]
["Jordan Nolan","LA - C,LW,RW",567,9,60]
["Pascal Dupuis ","Pit - LW,RW",570,11,16]
["Jeremy Morin ","Chi - LW,RW",574,6,43]
["Anthony Peluso ","Wpg - RW",579,2,49]
["Torrey Mitchell ","Mon - C,RW",581,14,65]
["Barclay Goodrow","SJ - C,RW",583,12,60]
["Beau Bennett ","Pit - LW,RW",586,12,49]
["Shawn Thornton ","Fla - LW,RW",596,5,46]
["Gabriel Bourque ","Nsh - LW,RW",598,13,69]
["Jamie McGinn ","Buf - LW,RW",599,6,19]
["Corey Tropp ","Chi - LW,RW",601,8,61]
["Travis Moen ","Dal - LW,RW",604,9,44]
["Viktor Stalberg ","NYR - LW,RW",605,10,25]
["Matt Halischuk ","Wpg - RW",607,8,47]
["Joe Vitale ","Ari - C,RW",612,9,70]
["Marc-Andre Cliché","Col - RW",616,7,74]
["Emerson Etem ","NYR - LW,RW",618,10,45]
["Jordan Schroeder ","Min - C,RW",619,8,25]
["Jesper Fast ","NYR - LW,RW",622,14,58]
["Matt Fraser ","Wpg - LW,RW",623,12,60]
["Dennis Everberg ","Col - RW",634,12,55]
["Cody McCormick ","Buf - C,LW,RW",636,4,33]
["Ryane Clowe","NJ - LW,RW",637,4,13]
["Valeri Nichushkin ","Dal - RW",643,1,8]
["Micheal Ferland ","Cgy - LW,RW",644,5,26]
["Mike Brown","SJ - RW",647,0,12]
["Zach Boychuk ","Car - LW,RW",651,6,31]
["Patrick Bordeleau ","Col - LW,RW",654,0,1]
["Jesse Winchester ","Col - C,LW,RW",659,0,"-"]
["Jayson Megna ","NYR - RW",666,1,12]
["Bobby Farnham ","Pit - RW",670,0,11]
["Peter Harrold ","StL - RW,D",673,5,43]
["Christian Thomas ","Mon - LW,RW",680,1,18]
["Tyler Pitlick ","Edm - RW",685,2,17]
["Landon Ferraro ","Det - C,RW",695,1,3]
["Ryan Hartman ","Chi - RW",705,0,5]
["Chris Wagner ","Anh - RW",712,0,9]
["Brett Bulmer ","Min - RW",713,0,"-"]
["Steve Moses ","Nsh - RW",719,0,"-"]
["Viktor Tikhonov ","Chi - RW",723,0,"-"]
["Stefan Noesen ","Anh - RW",724,0,1]
["Alex Burmistrov ","Wpg - C,RW",725,0,"-"]
["Jerry D'Amigo ","Buf - RW",732,0,9]

{"sheet":"Defence","index":7,"n_rows":272,"n_cols":5,"rows_kept":272}
["Player","Team","O-Rank","Points","GP"]
["Erik Karlsson ","Ott - D",14,66,82]
["P.K. Subban ","Mon - D",18,60,82]
["Kevin Shattenkirk ","StL - D",34,44,56]
["Mark Giordano ","Cgy - D",37,48,61]
["Dustin Byfuglien ","Wpg - RW,D",38,45,69]
["Brent Burns","SJ - RW,D",47,60,82]
["Duncan Keith ","Chi - D",50,45,80]
["Shea Weber ","Nsh - D",51,45,78]
["Drew Doughty","LA - D",52,46,82]
["Victor Hedman","TB - D",55,38,59]
["Keith Yandle ","NYR - D",57,52,84]
["Alex Pietrangelo ","StL - D",58,46,81]
["Kris Letang ","Pit - D",59,54,69]
["Roman Josi ","Nsh - D",62,55,81]
["John Carlson ","Was - D",67,55,82]
["Oliver Ekman-Larsson ","Ari - D",83,43,82]
["Tyson Barrie ","Col - D",84,53,80]
["Ryan McDonagh ","NYR - D",89,33,71]
["Aaron Ekblad ","Fla - D",90,39,81]
["Mike Green ","Det - D",102,45,72]
["Justin Faulk ","Car - D",104,49,82]
["Sami Vatanen ","Anh - D",109,37,67]
["Dougie Hamilton ","Cgy - D",111,42,72]
["Dennis Wideman ","Cgy - D",117,56,80]
["Torey Krug ","Bos - D",124,39,78]
["Andrei Markov ","Mon - D",127,50,81]
["Mark Streit ","Phi - D",130,52,81]
["T.J. Brodie ","Cgy - D",133,41,81]
["Niklas Kronwall ","Det - D",142,44,80]
["Nick Leddy ","NYI - D",149,37,78]
["Brent Seabrook ","Chi - D",151,31,82]
["John Klingberg ","Dal - D",166,40,65]
["Johnny Boychuk ","NYI - D",172,35,72]
["Ryan Suter ","Min - D",173,38,77]
["Andrej Sekera ","Edm - D",182,23,73]
["Jacob Trouba ","Wpg - D",184,22,65]
["Olli Maatta ","Pit - D",185,9,20]
["Dan Boyle ","NYR - D",190,20,65]
["Hampus Lindholm ","Anh - D",192,34,78]
["Dion Phaneuf ","Tor - D",193,29,70]
["Jake Muzzin","LA - D",194,41,76]
["James Wisniewski ","Car - D",196,34,69]
["Cam Fowler ","Anh - D",199,34,80]
["Alexander Edler ","Van - D",205,31,74]
["Erik Johnson ","Col - D",216,23,47]
["Anton Stralman","TB - D",217,39,82]
["Seth Jones ","Nsh - D",220,27,82]
["Zdeno Chara ","Bos - D",222,20,63]
["Jack Johnson ","Cls - D",223,40,79]
["Alex Goligoski ","Dal - D",225,36,81]
["Brian Campbell ","Fla - D",226,27,82]
["Matt Niskanen ","Was - D",232,31,82]
["Christian Ehrhoff","LA - D",235,14,49]
["Marek Zidlicky ","Det - D",236,34,84]
["Matt Dumba ","Min - D",239,16,58]
["Kris Russell ","Cgy - D",244,34,79]
["Ryan Ellis ","Nsh - D",246,27,58]
["Jared Spurgeon ","Min - D",247,25,66]
["Brayden McNabb","LA - D",252,24,71]
["Danny DeKeyser ","Det - D",254,31,80]
["Morgan Rielly ","Tor - D",256,29,81]
["Jason Garrison","TB - D",257,30,70]
["Kevin Klein ","NYR - D",259,26,65]
["David Savard ","Cls - D",262,36,82]
["Cody Franson ","Nsh - D",263,36,78]
["Darnell Nurse ","Edm - D",268,0,2]
["Alec Martinez","LA - D",269,22,56]
["Dan Girardi ","NYR - D",270,20,82]
["Rasmus Ristolainen ","Buf - D",272,20,78]
["Marco Scandella ","Min - D",275,23,64]
["Travis Hamonic ","NYI - D",278,33,71]
["David Rundblad ","Chi - D",280,14,49]
["Niklas Hjalmarsson ","Chi - D",283,19,82]
["Matt Irwin ","Bos - D",285,19,53]
["Derrick Pouliot ","Pit - D",289,7,34]
["Oscar Klefbom ","Edm - D",298,20,60]
["Tyler Myers ","Wpg - D",300,28,71]
["Michael Del Zotto ","Phi - D",302,32,64]
["Jay Bouwmeester ","StL - D",303,13,72]
["Trevor Daley ","Chi - D",305,38,68]
["Toby Enstrom ","Wpg - D",307,23,60]
["Jake Gardiner ","Tor - D",309,24,79]
["Adam Larsson","NJ - D",312,24,64]
["Matthew Carle","TB - D",314,18,59]
["Jonas Brodin ","Min - D",318,17,71]
["Justin Schultz ","Edm - D",324,31,81]
["Andy Greene","NJ - D",325,22,82]
["Jakub Kindl ","Det - D",326,13,35]
["Mattias Ekholm ","Nsh - D",327,18,80]
["Marc-Edouard Vlasic","SJ - D",329,23,70]
["Zach Bogosian ","Buf - D",332,20,62]
["Marc Staal ","NYR - D",335,20,80]
["Dan Hamhuis ","Van - D",370,23,59]
["Jason Demers ","Dal - D",384,25,81]
["Francois Beauchemin ","Col - D",404,23,64]
["Simon Despres ","Anh - D",413,23,75]
["Eric Gelinas","NJ - D",415,19,61]
["Kevin Bieksa ","Anh - D",421,14,60]
["Kyle Quincey ","Det - D",422,18,73]
["Justin Braun","SJ - D",425,23,70]
["Yannick Weber ","Van - D",432,21,65]
["Eric Gryba ","Edm - D",435,12,75]
["Dmitry Kulikov ","Fla - D",438,22,73]
["Ian Cole ","Pit - D",441,17,74]
["Erik Gudbranson ","Fla - D",450,13,76]
["Brendan Smith ","Det - D",452,13,76]
["Mark Borowiecki ","Ott - D",453,11,63]
["Mark Stuart ","Wpg - D",454,14,70]
["Barret Jackman ","Nsh - D",455,15,80]
["Michael Stone ","Ari - D",456,18,81]
["Kevin Connauton ","Cls - D",457,21,62]
["Brooks Orpik ","Was - D",458,19,78]
["Fedor Tyutin ","Cls - D",459,15,67]
["Karl Alzner ","Was - D",464,21,82]
["Paul Martin","SJ - D",465,20,74]
["Patrick Wiercioch ","Ott - D",466,13,56]
["Marc Methot ","Ott - D",475,11,45]
["Brenden Dillon","SJ - D",476,10,80]
["Jonathan Ericsson ","Det - D",479,15,82]
["Alexei Emelin ","Mon - D",480,14,68]
["Tom Gilbert ","Mon - D",481,12,72]
["Cody Ceci ","Ott - D",482,21,81]
["Nick Holden ","Col - D",486,14,78]
["Jay Harrison ","Wpg - D",489,9,55]
["Zach Redmond ","Col - D",491,20,59]
["Andrew MacDonald ","Phi - D",492,12,58]
["Jordie Benn ","Dal - D",494,16,73]
["John-Michael Liles","Car - D",497,22,57]
["Christopher Tanev ","Van - D",498,20,70]
["Adam McQuaid ","Bos - D",500,7,63]
["Ben Lovejoy ","Pit - D",507,14,60]
["Jeff Petry ","Mon - D",508,22,78]
["Dennis Seidenberg ","Bos - D",509,14,82]
["Robert Bortuzzo ","StL - D",511,8,51]
["John Moore","NJ - D",513,11,57]
["Calvin de Haan ","NYI - D",514,12,65]
["Thomas Hickey ","NYI - D",515,22,81]
["Johnny Oduya ","Dal - D",519,10,76]
["Clayton Stoner ","Anh - D",521,8,69]
["Nicklas Grossmann ","Ari - D",523,14,68]
["Andrej Sustr","TB - D",526,13,72]
["Nick Schultz ","Phi - D",527,15,80]
["Radko Gudas ","Phi - D",530,5,31]
["Matt Greene","LA - D",531,9,82]
["Matt Hunwick ","Tor - D",535,11,55]
["Willie Mitchell ","Fla - D",536,8,66]
["Nathan Beaulieu ","Mon - D",538,9,64]
["Kevan Miller ","Bos - D",539,7,41]
["Carl Gunnarsson ","StL - D",541,12,61]
["John Scott ","Ari - LW,D",544,4,38]
["Braydon Coburn","TB - D",546,11,43]
["Luke Schenn ","Phi - D",550,14,58]
["Adam Pardy ","Wpg - D",552,9,55]
["Zbynek Michalek ","Ari - D",553,12,68]
["Damon Severson","NJ - D",555,17,51]
["Dalton Prout ","Cls - D",556,8,63]
["Luca Sbisa ","Van - D",560,11,76]
["Nate Guenin ","Col - D",562,15,76]
["Chris Butler ","StL - D",563,9,33]
["Nikita Zadorov ","Col - D",566,15,60]
["Stephane Robidas ","Tor - D",568,7,52]
["Matt Bartkowski ","Van - D",573,4,47]
["Brad Stuart ","Col - D",575,13,65]
["Nikita Nikitin ","Edm - D",584,10,42]
["Andrew Ference ","Edm - D",587,14,70]
["Jared Cowen ","Ott - D",588,9,54]
["Deryk Engelland ","Cgy - D",590,11,76]
["Rob Scuderi ","Pit - D",593,10,82]
["Ryan Murphy ","Car - D",597,13,37]
["Nate Prosser ","Min - D",600,7,63]
["Roman Polak ","Tor - D",602,9,56]
["Jamie McBain","LA - D",606,9,26]
["Jon Merrill","NJ - D",608,14,66]
["Brian Strait ","NYI - D",610,7,52]
["Ron Hainsey ","Car - D",611,10,81]
["Cody Goloubef ","Cls - D",614,9,36]
["Victor Bartley ","Nsh - D",615,10,37]
["Nikita Nesterov","TB - D",617,7,27]
["Andre Benoit ","StL - D",621,9,59]
["Christian Folin ","Min - D",624,10,40]
["Ben Chiarot ","Wpg - D",625,8,40]
["Raphael Diaz ","NYR - D",626,4,56]
["Chris Phillips ","Ott - D",627,3,36]
["Carlo Colaiacovo ","Buf - D",628,8,33]
["Paul Postma ","Wpg - D",629,6,42]
["Mike Weber ","Buf - D",631,7,64]
["Ryan Murray ","Cls - D",635,3,12]
["Grant Clitsome ","Wpg - D",639,4,24]
["Tim Erixon ","Pit - D",640,7,42]
["Mark Fayne ","Edm - D",641,8,74]
["Matt Donovan ","Buf - D",642,3,12]
["Jyrki Jokipakka ","Dal - D",645,10,51]
["Josh Manson ","Anh - D",646,3,28]
["Nate Schmidt ","Was - D",648,4,39]
["Connor Murphy ","Ari - D",650,7,73]
["Michal Jordan ","Car - D",658,6,38]
["Zach Trotman ","Bos - D",660,5,27]
["Mark Pysyk ","Buf - D",662,3,7]
["Brandon Gormley ","Ari - D",663,4,27]
["Steven Kampfer ","Fla - D",664,4,25]
["Taylor Fedun ","Van - D",667,4,7]
["Jarred Tinordi ","Mon - D",671,2,13]
["Peter Harrold ","StL - RW,D",673,5,43]
["Ladislav Smid ","Cgy - D",674,1,31]
["Dmitry Orlov ","Was - D",676,0,"-"]
["Mirco Mueller","SJ - D",678,4,39]
["Luke Witkowski","TB - D",679,0,16]
["Trevor van Riemsdyk ","Chi - D",681,1,18]
["Mark Fistric ","Anh - D",684,0,9]
["Griffin Reinhart ","Edm - D",687,1,8]
["David Warsofsky ","Pit - D",688,1,4]
["Justin Falk ","Cls - D",690,2,18]
["Greg Pateryn ","Mon - D",692,0,17]
["Slater Koekkoek","TB - D",700,0,3]
["Anthony Bitetto ","Nsh - D",701,0,7]
["Chris Summers ","NYR - D",703,3,20]
["Jake McCabe ","Buf - D",706,0,2]
["Josh Gorges ","Buf - D",707,6,46]
["Brett Kulak ","Cgy - D",709,0,1]
["Haydn Fleury ","Car - D",718,0,"-"]
["Noah Hanifin ","Car - D",720,0,"-"]
["Mattias Ohlund","TB - D",726,0,"-"]
["Yevgeni Medvedev ","Phi - D",728,0,"-"]
["Taylor Chorney ","Was - D",731,0,7]
["Tyler Wotherspoon ","Cgy - D",736,0,1]
["Rasmus Rissanen ","Car - D",737,0,6]
["Patrick Wey ","Was - D",3,null,796]
["Stefan Elliott ","Col - D",1,null,799]
["David Rundblad ","Chi - D",1,null,801]
["Christopher Breen ","Bos - D",2,null,802]
["Bobby Sanguinetti ","Van - D",0,null,803]
["Cameron Gaunce ","Dal - D",0,null,805]
["Brayden McNabb","LA - D",0,null,806]
["Stu Bickel ","Min - D",0,null,807]
["Matt Dumba ","Min - D",2,null,810]
["Jake McCabe ","Buf - D",1,null,813]
["Tyler Wotherspoon ","Cgy - D",4,null,816]
["Denis Grebeshkov ","Edm - D",1,null,824]
["Bruno Gervais ","Col - D",0,null,825]
["Cody Goloubef ","Cls - D",0,null,826]
["Matt Tennyson","SJ - D",0,null,827]
["Hal Gill ","Phi - D",0,null,829]
["Dmitry Korobov","TB - D",1,null,830]
["Oscar Klefbom ","Edm - D",3,null,831]
["Jeff Schultz","LA - D",0,null,833]
["Chad Billins ","Cgy - D",3,null,834]
["Andrew Campbell ","Ari - D",0,null,836]
["Mark Cundari ","Cgy - D",0,null,839]
["Patrik Nemeth ","Dal - D",0,null,840]
["Greg Pateryn ","Mon - D",0,null,848]
["Matt MacKenzie ","Buf - D",0,null,861]
["Joonas Jarvinen ","Nsh - D",0,null,862]
["Brett Ponich ","StL - D",0,null,864]
["Steven Kampfer ","NYR - D",0,null,867]
["Max Nicastro ","Det - D",0,null,868]
["Gleason Fournier ","Det - D",0,null,870]
["Ilari Melart ","Cls - D",0,null,878]
["Nick Petrecki","SJ - D",0,null,885]
["Charles-Olivier Roussel","Nsh - D",0,null,886]
["Marc Cantin ","NYI - D",0,null,887]
["Mattias Ohlund","TB - D",0,null,889]
["Chris Pronger ","Phi - D",0,null,891]
["Brandon Burlon","NJ - D",0,null,892]
["Maxim Noreau ","Col - D",0,null,896]
["Ben Blood ","Ott - D",0,null,897]
["Mike Mottau ","Fla - D",0,null,906]
["Brian Lee","TB - D",0,null,908]
["Yann Sauve ","Van - D",0,null,910]
["Cameron Schilling ","Was - D",0,null,911]
["Derek Smith ","Cgy - D",1,null,913]
["Ben Chiarot ","Wpg - D",0,null,914]

{"sheet":"Goalies","index":8,"n_rows":71,"n_cols":7,"rows_kept":71}
["Player","Team","O-Rank","Wins","Shutouts","Points","GP"]
["Carey Price ","Mon - G",7,44,9,97,66]
["Henrik Lundqvist ","NYR - G",13,30,5,65,46]
["Jonathan Quick","LA - G",22,36,6,78,72]
["Pekka Rinne ","Nsh - G",23,41,4,86,64]
["Braden Holtby ","Was - G",25,41,9,91,73]
["Tuukka Rask ","Bos - G",26,34,3,71,70]
["Ben Bishop","TB - G",29,40,4,84,62]
["Devan Dubnyk ","Min - G",31,36,6,78,58]
["Marc-Andre Fleury","Pit - G",33,34,10,78,64]
["Corey Crawford ","Chi - G",46,32,2,66,57]
["Cory Schneider","NJ - G",53,26,5,57,69]
["Sergei Bobrovsky ","Cls - G",61,30,2,62,51]
["Roberto Luongo ","Fla - G",63,28,2,58,61]
["Jaroslav Halak ","NYI - G",69,38,6,82,59]
["Semyon Varlamov ","Col - G",74,28,5,61,57]
["Ryan Miller ","Van - G",77,29,6,64,45]
["Steve Mason ","Phi - G",81,18,3,39,51]
["Jonas Hiller ","Cgy - G",88,26,1,53,52]
["Brian Elliott ","StL - G",99,26,5,57,46]
["Jake Allen ","StL - G",101,22,4,48,37]
["Ondrej Pavelec ","Wpg - G",107,22,5,49,50]
["Frederik Andersen ","Anh - G",114,35,3,73,54]
["Jimmy Howard ","Det - G",121,23,2,48,53]
["Martin Jones","SJ - G",132,4,3,11,15]
["Craig Anderson ","Ott - G",134,14,3,31,35]
["Andrew Hammond ","Ott - G",136,20,3,43,24]
["Kari Lehtonen ","Dal - G",145,34,5,73,65]
["Mike Smith ","Ari - G",148,14,0,28,62]
["Jonathan Bernier ","Tor - G",158,21,2,44,58]
["Cam Talbot ","Edm - G",162,21,5,47,36]
["Antti Niemi ","Dal - G",165,31,5,67,61]
["Petr Mrazek ","Det - G",207,16,3,35,29]
["Cam Ward ","Car - G",208,22,1,45,51]
["Eddie Lack ","Car - G",218,18,2,38,41]
["Robin Lehner ","Buf - G",221,9,0,18,25]
["Alex Stalock","SJ - G",229,8,2,18,22]
["Anton Khudobin ","Anh - G",240,8,1,17,34]
["Andrei Vasilevskiy","TB - G",245,7,1,15,16]
["John Gibson ","Anh - G",250,13,1,27,23]
["Karri Ramo ","Cgy - G",276,15,2,32,34]
["James Reimer ","Tor - G",301,9,0,18,35]
["Thomas Greiss ","NYI - G",311,9,0,18,20]
["Darcy Kuemper ","Min - G",323,14,3,31,31]
["Scott Darling ","Chi - G",330,9,1,19,14]
["Michael Hutchinson ","Wpg - G",343,21,2,44,38]
["Antti Raanta ","NYR - G",350,7,2,16,14]
["Keith Kinkaid","NJ - G",351,6,0,12,19]
["Michal Neuvirth ","Phi - G",366,7,0,14,32]
["Carter Hutton ","Nsh - G",368,6,1,13,18]
["Al Montoya ","Fla - G",374,6,0,12,20]
["Curtis McElhinney ","Cls - G",376,12,0,24,32]
["Ben Scrivens ","Edm - G",379,15,1,31,57]
["Philipp Grubauer ","Was - G",380,1,0,2,1]
["Jeff Zatkoff ","Pit - G",381,0,0,0,1]
["Jhonas Enroth","LA - G",382,18,2,38,50]
["Dustin Tokarski ","Mon - G",383,6,0,12,17]
["Chad Johnson ","Buf - G",387,8,0,16,19]
["Reto Berra ","Col - G",388,5,1,11,19]
["Jacob Markstrom ","Van - G",389,1,0,2,3]
["Anders Lindback ","Ari - G",390,6,0,12,26]
["Niklas Backstrom ","Min - G",391,5,0,10,19]
["Jeremy Smith ","Bos - G",392,"-","-",0,"-"]
["Malcolm Subban ","Bos - G",393,0,0,0,1]
["Joni Ortio ","Cgy - G",394,4,1,9,6]
["Chris Driedger ","Ott - G",395,0,0,0,1]
["Richard Bachman ","Van - G",396,3,1,7,7]
["Marek Mazanec ","Nsh - G",398,0,0,0,2]
["Louis Domingue ","Ari - G",400,1,0,2,7]
["Kevin Poulin ","NYI - G",407,0,0,0,1]
["Justin Peters ","Was - G",411,3,0,6,12]

{"sheet":"Data","index":9,"n_rows":45,"n_cols":7,"rows_kept":45}
["Owners","Position"]
["Booya's (Cathy)","goalie 1"]
["Bruins (Bruce)","goalie 2"]
["Killa Chinchillas (Colin)","defence #1"]
["Curtis Crazy Canucks (Todd)","defence #2"]
["Dominant Brandon (Brandon)","defence #3"]
["Vamoos Pest (Tom)","defence #4"]
["Robs Chiefs (Rob)","left wing #1"]
["Riverdogs (Rhonda)","left wing #2"]
["Tad Nugents (Nick)","left wing #3"]
["Woap (Mike)","right wing #1"]
[null,"right wing #2"]
[null,"right wing #3"]
[null,"centre #1"]
[null,"centre #2"]
[null,"centre #3"]
[null,"utility"]
[null,"Reserve Roster #1"]
[null,"Reserve Roster #2"]
[null,"Reserve Roster #3"]
[null,"Reserve Roster #4"]
[null,"Reserve Roster #5"]
[null,"Reserve Roster #6"]
[null,"Reserve Roster #7"]
["Make sure every year to select all the players for each position and recreate the bookmark name (delete name first, then recreate name) to ensure all players get listed.",null,"goalie","defence","left wing","right wing","centre"]
["Ensure that all players are listed when clicking on the button."]
[]
["When changing the toolbar, customize/hockey/attach/delete previous hockey/reattach new hockey toolbar."]
["Draft Order"]
["Dominant Brandon (Brandon)",6]
["Riverdogs (Rhonda)",3]
["Robs Chiefs (Rob)",2]
["Woap (Mike)",10]
["Booya's (Cathy)",7]
["Tad Nugents (Nick)",1]
["Killa Chinchillas (Colin)",8]
["Cold Warriors (Tom)",9]
["Curtis Crazy Canucks (Todd)",4]
["Bruins (Bruce)",5]
[]
[]
["Formulas to Retreive Name and Position"]
["=RIGHT(A1,LEN(A1)+ 5-FIND(\"-\",A1))","Position"]
["=LEFT(A1,FIND(\"-\",A1) -5)","Name"]
["=Trim(cell)","Trim the positions for extra space"]